{"text_format":"1","workbook":"xlsx","n_sheets":55,"sheets":["Status Sheet","COUNTRYWIDE PLAN","COUNTRYWIDE  ISO 25%","AL","AK","AZ","AR","CA","CO","CT","DE","DC","FL","GA","HI","ID","IL","IN","IA","KS","KY","LA","MA","ME","MD","MI","MN","MS","MO","MT","NE","NC GROUP COS","NC OTHER ","NV","NH","ND","NJ","NM","NY","OH","OR","OK","PA","RI","SC","SD","TN","TX","UT","VT","VA","WV","WA","WI","WY"],"not_rendered":{"charts":0,"images":0,"macros":1,"external_links":0,"defined_names":52,"comments":2,"pivot_tables":0},"unopened":[],"bounds":{"document_bytes":16777216,"sheet_cells":100000,"rows_first":2000,"rows_last":500,"rows_between":2000,"halvings":0,"cell_chars":16384,"cell_head_chars":4096},"cells_cut":0,"cells_raw":0,"read":"whole","date_system":"1900"}

{"sheet":"Status Sheet","index":0,"n_rows":58,"n_cols":6,"rows_kept":58,"cut":false,"hidden":false,"merged":[[0,0,0,2],[53,0,53,1],[0,3,0,5]]}
["2023-07-01",null,null,"AIG-20-GL-05"]
["STATE","RATING PLAN","MODIFICATION FACTOR","STATUS","APPROVAL DATE","EFF DATE"]
["Alabama","ISO","+-25%","NF"]
["Alaska","ISO","+-25%","NF"]
["Arizona","ISO","+-25%","NF"]
["Arkansas","AIG","+-40%","E","2020-09-18","2021-01-01"]
["California","ISO","+-25%","NF"]
["Colorado","ISO","+-25%","NF"]
["Connecticut","ISO","+-25%","NF"]
["Delaware","ISO","+-25%","NF"]
["Dist. of Col.","ISO","+-25%","NF"]
["Florida","ISO","+-25%","NF"]
["Georgia","ISO","+-15%","NF"]
["Hawaii","N/A","N/A","NF"]
["Idaho","AIG","+-40%","NF"]
["Illinois","AIG","+-50%","E","2020-09-18","2021-01-01"]
["Indiana","AIG","+-50%","E","2020-09-18","2021-01-01"]
["Iowa","ISO","+-25%","NF"]
["Kansas","AIG","+-40%","E","2020-10-08","2021-01-01"]
["Kentucky","AIG","+-50%","E","2020-09-18","2021-01-01"]
["Louisiana","ISO","+-25%","NF"]
["Maine","AIG","+-40%","E","2020-09-17","2021-01-01"]
["Maryland","AIG","+-40%","E","2020-09-22","2021-01-01"]
["Massachusetts","ISO","+-25%","NF"]
["Michigan","ISO","+-25%","NF"]
["Minnesota","AIG","+-40%","E","2020-09-21","2021-01-01"]
["Mississippi","AIG","+-40%","E","2020-09-18","2021-01-01"]
["Missouri","ISO","+-25%","NF"]
["Montana","AIG","+-40%","E","2020-09-17","2021-01-01"]
["Nebraska","N/A","N/A","NF"]
["Nevada","AIG","+-40%","NF"]
["N. Hampshire","AIG","+-40%","E","2020-10-16","2021-01-01"]
["N. Jersey","ISO","+-25%","NF"]
["N. Mexico","ISO","+-25%","NF"]
["New York","ISO","+-15%","NF"]
["N. Carolina","AIG","+-50%","E",null,"2021-01-01"]
["N. Dakota","ISO","+-25%","NF"]
["Ohio","ISO","+-25%","NF"]
["Oklahoma","AIG","+-40%","E","2020-09-24","2021-01-01"]
["Oregon","ISO","+-25%","NF"]
["Pennsylvania","AIG","+-40%","E","2020-09-20","2021-01-01"]
["Rhode Island","AIG","+-40%","E","2020-10-20","2021-01-01"]
["S. Carolina","AIG","-40% +25%","E","2020-09-18","2021-01-01"]
["S. Dakota","ISO","+-25%","NF"]
["Tennessee","AIG","+-50%","E","2020-09-18","2021-01-01"]
["Texas","AIG","+-50%","NF"]
["Utah","ISO","+-25%","NF"]
["Vermont","AIG","+-50%","E","2020-09-22","2021-01-01"]
["Virginia","AIG","+-50%","E","2020-11-19","2021-01-01"]
["Washington","ISO","+-25%","NF"]
["W. Virginia","AIG","+-40%","E","2020-09-18","2021-01-01"]
["Wisconsin","AIG","+-50%","E","2020-09-22","2021-01-01"]
["Wyoming","AIG","+-50%","E","2020-10-02","2021-01-01"]
[]
["NOTES"]
["E=Filed effective date"]
[]
["NF= Not Filed"]

{"sheet":"COUNTRYWIDE PLAN","index":1,"n_rows":10,"n_cols":1,"rows_kept":10,"cut":false,"hidden":true,"merged":[[23,1,23,5],[24,1,24,5],[59,1,59,5],[25,1,25,5],[26,1,26,5],[27,1,27,5],[56,1,56,5],[57,1,57,5],[58,1,58,5],[52,1,52,5],[53,1,53,5],[54,1,54,5],[55,1,55,5],[39,1,39,5],[28,1,28,5],[29,1,29,5],[1,0,1,6],[2,0,2,6],[3,0,3,6],[4,0,4,6],[8,0,8,6],[6,0,6,6],[20,1,20,5],[21,1,21,5],[22,1,22,5],[10,1,10,5],[12,1,12,5],[15,1,15,5],[11,1,11,5],[13,1,13,5],[14,1,14,5],[9,0,9,6],[16,1,16,5],[17,1,17,5],[18,1,18,5],[19,1,19,5],[30,1,30,5],[31,1,31,5],[32,1,32,5],[33,1,33,5],[34,1,34,5],[35,1,35,5],[36,1,36,5],[37,1,37,5],[38,1,38,5],[51,1,51,5],[40,1,40,5],[41,1,41,5],[42,1,42,5],[43,1,43,5],[44,1,44,5],[45,1,45,5],[46,1,46,5],[47,1,47,5],[48,1,48,5],[49,1,49,5],[50,1,50,5]]}
[]
[]
["SCHEDULE RATING MODIFICATIONS - GENERAL LIABILITY"]
["RATING INFORMATION FORM"]
["ISO CW PLAN APPLIES IN ALL STATES WITH MAX CR OR DB 25% EXCEPT: "]
["GA, NY ,ID, NV, NC, SC, TN, VA and Texas - Use state specific worksheets provided."]
[]
["Schedule Rating is not allowed in Hawaii and Nebraska."]
["A schedule rating modification may also be applied to the otherwise chargeable premium in accordance with the following table, subject to a maximum credit of -25% or debit of +25%, to reflect such characteristics of the risk as are not reflected in its experience."]
[" "]

{"sheet":"COUNTRYWIDE  ISO 25%","index":2,"n_rows":55,"n_cols":7,"rows_kept":55,"cut":false,"hidden":true,"merged":[[8,1,8,5],[9,1,9,5],[10,1,10,5],[11,1,11,5],[1,0,1,6],[2,0,2,6],[3,0,3,6],[4,0,4,6],[6,0,6,6],[42,6,45,6],[12,1,12,5],[13,1,13,5],[14,2,14,4],[15,2,15,4],[17,3,17,4],[18,6,21,6],[22,6,25,6],[26,6,29,6],[30,6,33,6],[34,6,37,6],[38,6,41,6],[57,1,57,5],[46,6,49,6],[50,0,50,2],[53,0,53,6],[54,1,54,5],[55,1,55,5],[56,1,56,5]]}
[]
["ISO COUNTRYWIDE SCHEDULE RATING PLAN"]
[]
["SCHEDULE RATING MODIFICATIONS - GENERAL LIABILITY"]
["RATING INFORMATION FORM"]
[]
["A schedule rating modification may also be applied to the otherwise chargeable premium in accordance with the following table, subject to a maximum credit of -25% or debit of +25%, to reflect such characteristics of the risk as are not reflected in its experience."]
[]
[]
["NAMED INSURED","EFFECTIVE DATE",null,null,null,null,"AIG COMPANY & POLICY NUMBER"]
[]
["INSURED LOCATION(s) BY STATE:"]
[]
[]
["RISK ",null,"MODIFICATIONS",null,null,null,"REASONS"]
["CHARACTERISTICS"]
[null,null,"RANGE","CR"," DB"]
[null,null,"%","% APPLIED"]
["LOCATION: EXPOSURE INSIDE PREMISES",null," 5 +/-"]
[]
[]
[]
["LOCATION:  EXPOSURE OUTSIDE PREMISES",null,"5 +/-"]
[]
[]
[]
["PREMISES:  CONDITION AND CARE OF PREMISES",null,"10 +/-"]
[null,null,null," "]
[]
[]
["EQUIPMENT:  TYPE, CONDITION AND CARE OF EQUIPMENT",null,"10 +/-"]
[]
[]
[]
["CLASSIFICATION:  PECULIARITIES OF CLASSIFICATION",null,"10 +/-"]
[]
[]
[]
["EMPLOYEES:  SELECTION, TRAINING, SUPERVISION,",null,"6 +/-"]
["EXPERIENCE"]
[]
[]
["COOPERATION:  MEDICAL FACILITIES",null,"2 +/-"]
[]
[]
[]
["COOPERATION:  SAFETY PROGRAM",null,"2 +/-"]
[]
[]
[]
["TOTAL%  CR OR DB:",null,null,{"$f":"SUM(D31)","v":0},{"$f":"SUM(E19:E47)","v":0}]
[]
["SEE CLM STATE PAGES FOR COMPLETE DESCRIPTION OF CHARACTERISTICS"]
[]
["UNDERWRITER SIGNATURE","DATE"]

{"sheet":"AL","index":3,"n_rows":56,"n_cols":5,"rows_kept":56,"cut":false,"hidden":false,"merged":[[7,1,7,3],[1,0,1,4],[2,0,2,4],[3,0,3,4],[4,0,4,4],[6,0,6,4],[29,4,32,4],[8,1,8,3],[9,1,9,3],[10,1,10,3],[11,1,11,3],[12,1,12,3],[13,1,13,3],[14,1,14,3],[16,2,16,3],[17,4,20,4],[21,4,24,4],[25,4,28,4],[50,1,50,3],[51,1,51,3],[52,1,52,3],[33,4,36,4],[37,4,40,4],[41,4,44,4],[45,4,47,4],[48,0,48,1],[49,0,49,4]]}
["ALABAMA"]
["ISO COUNTRYWIDE SCHEDULE RATING PLAN"]
["As of July 2023"]
["SCHEDULE RATING MODIFICATIONS - GENERAL LIABILITY"]
["RATING INFORMATION FORM"]
[]
["A schedule rating modification may also be applied to the otherwise chargeable premium in accordance with the following table, subject to a maximum credit of -25% or debit of +25%, to reflect such characteristics of the risk as are not reflected in its experience."]
[]
["NAMED INSURED","EFFECTIVE DATE",null,null,"AIG COMPANY & POLICY NUMBER"]
[]
["INSURED LOCATION(s) BY STATE:"]
[]
[]
["RISK ","MODIFICATIONS",null,null,"REASONS"]
["CHARACTERISTICS"]
[null,"RANGE","CR"," DB"]
[null,"%","% APPLIED"]
["LOCATION: EXPOSURE INSIDE PREMISES"," 5 +/-"]
[]
[]
[]
["LOCATION:  EXPOSURE OUTSIDE PREMISES","5 +/-"]
[]
[]
[]
["PREMISES:  CONDITION AND CARE OF PREMISES","10 +/-"]
[null,null," "]
[]
[]
["EQUIPMENT:  TYPE, CONDITION AND CARE OF EQUIPMENT","10 +/-"]
[]
[]
[]
["CLASSIFICATION:  PECULIARITIES OF CLASSIFICATION","10 +/-"]
[]
[]
[]
["EMPLOYEES:  SELECTION, TRAINING, SUPERVISION,","6 +/-"]
["EXPERIENCE"]
[]
[]
["COOPERATION:  MEDICAL FACILITIES","2 +/-"]
[]
[]
[]
["COOPERATION:  SAFETY PROGRAM","2 +/-"]
[]
[]
["TOTAL%  CR OR DB:",null,{"$f":"SUM(C18:C46)","v":0},{"$f":"SUM(D18:D46)","v":0}]
[]
["UNDERWRITER SIGNATURE","DATE"]
[]
["NOTES:"]
[]
["DO NOT USE NEGATIVE NUMBERS WHEN APPLYING A CREDIT"]
["SEE CLM EXPERIENCE AND SCHEDULE RATING PLAN RULE FOR COMPLETE DESCRIPTION OF CHARACTERISTICS"]

{"sheet":"AK","index":4,"n_rows":56,"n_cols":5,"rows_kept":56,"cut":false,"hidden":false,"merged":[[7,1,7,3],[1,0,1,4],[2,0,2,4],[3,0,3,4],[4,0,4,4],[6,0,6,4],[29,4,32,4],[8,1,8,3],[9,1,9,3],[10,1,10,3],[11,1,11,3],[12,1,12,3],[13,1,13,3],[14,1,14,3],[16,2,16,3],[17,4,20,4],[21,4,24,4],[25,4,28,4],[50,1,50,3],[51,1,51,3],[52,1,52,3],[54,1,54,3],[33,4,36,4],[37,4,39,4],[41,4,44,4],[45,4,47,4],[48,0,48,1],[49,0,49,4]]}
["ALASKA"]
["ISO COUNTRYWIDE SCHEDULE RATING PLAN"]
["As of July 2023"]
["SCHEDULE RATING MODIFICATIONS - GENERAL LIABILITY"]
["RATING INFORMATION FORM"]
[]
["A schedule rating modification may also be applied to the otherwise chargeable premium in accordance with the following table, subject to a maximum credit of -25% or debit of +25%, to reflect such characteristics of the risk as are not reflected in its experience."]
[]
["NAMED INSURED","EFFECTIVE DATE",null,null,"   AIG COMPANY & POLICY NUMBER"]
[]
["INSURED LOCATION(s) BY STATE:"]
[]
[]
["RISK ","MODIFICATIONS",null,null,"REASONS"]
["CHARACTERISTICS"]
[null,"RANGE","CR"," DB"]
[null,"%","% APPLIED"]
["LOCATION: EXPOSURE INSIDE PREMISES"," 5 +/-"]
[]
[]
[]
["LOCATION:  EXPOSURE OUTSIDE PREMISES","5 +/-"]
[]
[]
[]
["PREMISES:  CONDITION AND CARE OF PREMISES","10 +/-"]
[null,null," "]
[]
[]
["EQUIPMENT:  TYPE, CONDITION AND CARE OF EQUIPMENT","10 +/-"]
[]
[]
[]
["CLASSIFICATION:  PECULIARITIES OF CLASSIFICATION","10 +/-"]
[]
[]
[]
["EMPLOYEES:  SELECTION, TRAINING, SUPERVISION,","6 +/-"]
["EXPERIENCE"]
[]
[]
["COOPERATION:  MEDICAL FACILITIES","2 +/-"]
[]
[]
[]
["COOPERATION:  SAFETY PROGRAM","2 +/-"]
[]
[]
["TOTAL%  CR OR DB:",null,{"$f":"SUM(C18:C46)","v":0},{"$f":"SUM(D18:D46)","v":0}]
[]
["UNDERWRITER SIGNATURE","DATE"]
[]
["NOTES"]
[]
["SEE CLM EXPERIENCE AND SCHEDULE RATING PLAN RULE FOR COMPLETE DESCRIPTION OF CHARACTERISTICS"]
["DO NOT USE NEGATIVE NUMBERS WHEN APPLYING A CREDIT"]

{"sheet":"AZ","index":5,"n_rows":56,"n_cols":5,"rows_kept":56,"cut":false,"hidden":false,"merged":[[7,1,7,3],[1,0,1,4],[2,0,2,4],[3,0,3,4],[4,0,4,4],[6,0,6,4],[29,4,32,4],[8,1,8,3],[9,1,9,3],[10,1,10,3],[11,1,11,3],[12,1,12,3],[13,1,13,3],[14,1,14,3],[16,2,16,3],[17,4,20,4],[21,4,24,4],[25,4,28,4],[50,1,50,3],[51,1,51,3],[52,1,52,3],[54,1,54,3],[33,4,36,4],[37,4,40,4],[41,4,44,4],[45,4,47,4],[48,0,48,1],[49,0,49,4]]}
["ARIZONA"]
["ISO COUNTRYWIDE SCHEDULE RATING PLAN"]
["As of July 2023"]
["SCHEDULE RATING MODIFICATIONS - GENERAL LIABILITY"]
["RATING INFORMATION FORM"]
[]
["A schedule rating modification may also be applied to the otherwise chargeable premium in accordance with the following table, subject to a maximum credit of -25% or debit of +25%, to reflect such characteristics of the risk as are not reflected in its experience."]
[]
["NAMED INSURED","EFFECTIVE DATE",null,null,"AIG COMPANY & POLICY NUMBER"]
[]
["INSURED LOCATION(s) BY STATE:"]
[]
[]
["RISK ","MODIFICATIONS",null,null,"REASONS"]
["CHARACTERISTICS"]
[null,"RANGE","CR"," DB"]
[null,"%","% APPLIED"]
["LOCATION: EXPOSURE INSIDE PREMISES"," 5 +/-"]
[]
[]
[]
["LOCATION:  EXPOSURE OUTSIDE PREMISES","5 +/-"]
[]
[]
[]
["PREMISES:  CONDITION AND CARE OF PREMISES","10 +/-"]
[null,null," "]
[]
[]
["EQUIPMENT:  TYPE, CONDITION AND CARE OF EQUIPMENT","10 +/-"]
[]
[]
[]
["CLASSIFICATION:  PECULIARITIES OF CLASSIFICATION","10 +/-"]
[]
[]
[]
["EMPLOYEES:  SELECTION, TRAINING, SUPERVISION,","6 +/-"]
["EXPERIENCE"]
[]
[]
["COOPERATION:  MEDICAL FACILITIES","2 +/-"]
[]
[]
[]
["COOPERATION:  SAFETY PROGRAM","2 +/-"]
[]
[]
["TOTAL%  CR OR DB:",null,{"$f":"SUM(C18:C46)","v":0},{"$f":"SUM(D18:D46)","v":0}]
[]
["UNDERWRITER SIGNATURE","DATE"]
[]
["NOTES:"]
[]
["SEE CLM EXPERIENCE AND SCHEDULE RATING PLAN RULE FOR COMPLETE DESCRIPTION OF CHARACTERISTICS"]
["DO NOT USE NEGATIVE NUMBERS WHEN APPLYING A CREDIT"]

{"sheet":"AR","index":6,"n_rows":55,"n_cols":5,"rows_kept":55,"cut":false,"hidden":false,"merged":[[7,1,7,3],[8,1,8,3],[9,1,9,3],[3,0,3,4],[4,0,4,4],[30,5,30,6],[32,4,35,4],[36,4,39,4],[40,4,43,4],[20,4,23,4],[24,4,27,4],[28,4,31,4],[51,1,51,3],[53,1,53,3],[5,0,5,4],[1,0,1,4],[44,4,46,4],[47,0,47,1],[48,0,48,4],[49,1,49,3],[50,1,50,3],[10,1,10,3],[11,1,11,3],[12,1,12,3],[13,1,13,3],[15,2,15,3],[16,4,19,4],[6,1,6,3]]}
["ARKANSAS"]
["AIG PROPRIETARY SCHEDULE RATING PLAN"]
["As of July 2023"]
["SCHEDULE RATING MODIFICATIONS - GENERAL LIABILITY"]
["RATING INFORMATION FORM"]
["A schedule rating modification may also be applied to the otherwise chargeable premium in accordance with the following table, subject to a maximum credit of -40% or debit of +40%, to reflect such characteristics of the risk as are not reflected in its experience."]
[]
["NAMED INSURED","EFFECTIVE DATE",null,null,"AIG COMPANY & POLICY NUMBER"]
[]
["INSURED LOCATION(s) BY STATE:"]
[]
[]
["RISK ","MODIFICATIONS",null,null,"REASONS"]
["CHARACTERISTICS"]
[null,"RANGE","CR"," DB"]
[null,"%","% APPLIED"]
["LOCATION: EXPOSURE INSIDE PREMISES","8 +/-"]
[]
[]
[]
["LOCATION:  EXPOSURE OUTSIDE PREMISES","8 +/-"]
[]
[]
[]
["PREMISES:  CONDITION AND CARE OF PREMISES","13 +/-"]
[]
[]
[]
["EQUIPMENT:  TYPE, CONDITION AND CARE OF EQUIPMENT","13 +/-"]
[]
[]
[]
["CLASSIFICATION:  PECULIARITIES OF CLASSIFICATION","13 +/-"]
[]
[]
[]
["EMPLOYEES:  SELECTION, TRAINING, SUPERVISION,","10 +/-"]
["EXPERIENCE"]
[]
[]
["COOPERATION:  MEDICAL FACILITIES ","5 +/-"]
[]
[]
[]
["COOPERATION:  SAFETY PROGRAM","5 +/-"]
[]
[]
["TOTAL%  CR OR DB:",null,{"$f":"SUM(C17:C47)","v":0},{"$f":"SUM(D17:D47)","v":0}]
[]
["UNDERWRITER SIGNATURE","DATE"]
[]
["NOTES"]
[]
["SEE CLM EXPERIENCE AND SCHEDULE RATING PLAN RULE FOR COMPLETE DESCRIPTION OF CHARACTERISTICS"]
["DO NOT USE NEGATIVE NUMBERS WHEN APPLYING A CREDIT"]

{"sheet":"CA","index":7,"n_rows":57,"n_cols":5,"rows_kept":57,"cut":false,"hidden":false,"merged":[[7,1,7,3],[1,0,1,4],[2,0,2,4],[3,0,3,4],[4,0,4,4],[6,0,6,4],[29,4,32,4],[8,1,8,3],[9,1,9,3],[10,1,10,3],[11,1,11,3],[12,1,12,3],[13,1,13,3],[14,1,14,3],[16,2,16,3],[17,4,20,4],[21,4,24,4],[25,4,28,4],[51,1,51,3],[52,1,52,3],[53,1,53,3],[55,1,55,3],[33,4,36,4],[37,4,40,4],[41,4,44,4],[45,4,48,4],[49,0,49,1],[50,0,50,4]]}
["CALIFORNIA"]
["ISO COUNTRYWIDE SCHEDULE RATING PLAN"]
["As of July 2023"]
["SCHEDULE RATING MODIFICATIONS - GENERAL LIABILITY"]
["RATING INFORMATION FORM"]
[]
["A schedule rating modification may also be applied to the otherwise chargeable premium in accordance with the following table, subject to a maximum credit of -25% or debit of +25%, to reflect such characteristics of the risk as are not reflected in its experience."]
[]
["NAMED INSURED","   EFFECTIVE DATE",null,null,"AIG COMPANY & POLICY NUMBER"]
[]
["INSURED LOCATION(s) BY STATE:"]
[]
[]
["RISK ","MODIFICATIONS",null,null,"REASONS"]
["CHARACTERISTICS"]
[null,"RANGE","CR"," DB"]
[null,"%","% APPLIED"]
["LOCATION: EXPOSURE INSIDE PREMISES"," 5 +/-"]
[]
[]
[]
["LOCATION:  EXPOSURE OUTSIDE PREMISES","5 +/-"]
[]
[]
[]
["PREMISES:  CONDITION AND CARE OF PREMISES","10 +/-"]
[null,null," "]
[]
[]
["EQUIPMENT:  TYPE, CONDITION AND CARE OF EQUIPMENT","10 +/-"]
[]
[]
[]
["CLASSIFICATION:  PECULIARITIES OF CLASSIFICATION","10 +/-"]
[]
[]
[]
["EMPLOYEES:  SELECTION, TRAINING, SUPERVISION,","6 +/-"]
["EXPERIENCE"]
[]
[]
["COOPERATION:  MEDICAL FACILITIES","2 +/-"]
[]
[]
[]
["COOPERATION:  SAFETY PROGRAM","2 +/-"]
[]
[]
[]
["TOTAL%  CR OR DB:",null,{"$f":"SUM(C18:C46)","v":0},{"$f":"SUM(D18:D46)","v":0}]
[]
["UNDERWRITER SIGNATURE","DATE"]
[]
["NOTES"]
[]
["SEE CLM EXPERIENCE AND SCHEDULE RATING PLAN RULE FOR COMPLETE DESCRIPTION OF CHARACTERISTICS"]
["DO NOT USE NEGATIVE NUMBERS WHEN APPLYING A CREDIT"]

{"sheet":"CO","index":8,"n_rows":57,"n_cols":5,"rows_kept":57,"cut":false,"hidden":false,"merged":[[7,1,7,3],[1,0,1,4],[2,0,2,4],[3,0,3,4],[4,0,4,4],[6,0,6,4],[29,4,32,4],[8,1,8,3],[9,1,9,3],[10,1,10,3],[11,1,11,3],[12,1,12,3],[13,1,13,3],[14,1,14,3],[16,2,16,3],[17,4,20,4],[21,4,24,4],[25,4,28,4],[51,1,51,3],[52,1,52,3],[53,1,53,3],[54,1,54,3],[33,4,36,4],[37,4,40,4],[42,4,45,4],[46,4,48,4],[49,0,49,1],[50,0,50,4]]}
["COLORADO"]
["ISO COUNTRYWIDE SCHEDULE RATING PLAN"]
["As of July 2023"]
["SCHEDULE RATING MODIFICATIONS - GENERAL LIABILITY"]
["RATING INFORMATION FORM"]
[]
["A schedule rating modification may also be applied to the otherwise chargeable premium in accordance with the following table, subject to a maximum credit of -25% or debit of +25%, to reflect such characteristics of the risk as are not reflected in its experience."]
[]
["NAMED INSURED","EFFECTIVE DATE",null,null,"AIG COMPANY & POLICY NUMBER"]
[]
["INSURED LOCATION(s) BY STATE:"]
[]
[]
["RISK ","MODIFICATIONS",null,null,"REASONS"]
["CHARACTERISTICS"]
[null,"RANGE","CR"," DB"]
[null,"%","% APPLIED"]
["LOCATION: EXPOSURE INSIDE PREMISES"," 5 +/-"]
[]
[]
[]
["LOCATION:  EXPOSURE OUTSIDE PREMISES","5 +/-"]
[]
[]
[]
["PREMISES:  CONDITION AND CARE OF PREMISES","10 +/-"]
[null,null," "]
[]
[]
["EQUIPMENT:  TYPE, CONDITION AND CARE OF EQUIPMENT","10 +/-"]
[]
[]
[]
["CLASSIFICATION:  PECULIARITIES OF CLASSIFICATION","10 +/-"]
[]
[]
[]
["EMPLOYEES:  SELECTION, TRAINING, SUPERVISION,","6 +/-"]
["EXPERIENCE"]
[]
[]
[]
["COOPERATION:  MEDICAL FACILITIES","2 +/-"]
[]
[]
[]
["COOPERATION:  SAFETY PROGRAM","2 +/-"]
[]
[]
["TOTAL%  CR OR DB:",null,{"$f":"SUM(C18:C47)","v":0},{"$f":"SUM(D18:D47)","v":0}]
[]
["UNDERWRITER SIGNATURE","DATE"]
[]
["NOTES"]
[]
["SEE CLM EXPERIENCE AND SCHEDULE RATING PLAN RULE FOR COMPLETE DESCRIPTION OF CHARACTERISTICS"]
["DO NOT USE NEGATIVE NUMBERS WHEN APPLYING A CREDIT"]

{"sheet":"CT","index":9,"n_rows":56,"n_cols":5,"rows_kept":56,"cut":false,"hidden":false,"merged":[[7,1,7,3],[1,0,1,4],[2,0,2,4],[3,0,3,4],[4,0,4,4],[6,0,6,4],[29,4,32,4],[8,1,8,3],[9,1,9,3],[10,1,10,3],[11,1,11,3],[12,1,12,3],[13,1,13,3],[14,1,14,3],[16,2,16,3],[17,4,20,4],[21,4,24,4],[25,4,28,4],[50,1,50,3],[51,1,51,3],[52,1,52,3],[53,1,53,3],[33,4,36,4],[37,4,40,4],[41,4,44,4],[45,4,47,4],[48,0,48,1],[49,0,49,4]]}
["CONNECTICUT"]
["ISO COUNTRYWIDE SCHEDULE RATING PLAN"]
["As of July 2023"]
["SCHEDULE RATING MODIFICATIONS - GENERAL LIABILITY"]
["RATING INFORMATION FORM"]
[]
["A schedule rating modification may also be applied to the otherwise chargeable premium in accordance with the following table, subject to a maximum credit of -25% or debit of +25%, to reflect such characteristics of the risk as are not reflected in its experience."]
[]
["NAMED INSURED","EFFECTIVE DATE",null,null,"AIG COMPANY & POLICY NUMBER"]
[]
["INSURED LOCATION(s) BY STATE:"]
[]
[]
["RISK ","MODIFICATIONS",null,null,"REASONS"]
["CHARACTERISTICS"]
[null,"RANGE","CR"," DB"]
[null,"%","% APPLIED"]
["LOCATION: EXPOSURE INSIDE PREMISES"," 5 +/-"]
[]
[]
[]
["LOCATION:  EXPOSURE OUTSIDE PREMISES","5 +/-"]
[]
[]
[]
["PREMISES:  CONDITION AND CARE OF PREMISES","10 +/-"]
[null,null," "]
[]
[]
["EQUIPMENT:  TYPE, CONDITION AND CARE OF EQUIPMENT","10 +/-"]
[]
[]
[]
["CLASSIFICATION:  PECULIARITIES OF CLASSIFICATION","10 +/-"]
[]
[]
[]
["EMPLOYEES:  SELECTION, TRAINING, SUPERVISION,","6 +/-"]
["EXPERIENCE"]
[]
[]
["COOPERATION:  MEDICAL FACILITIES","2 +/-"]
[]
[]
[]
["COOPERATION:  SAFETY PROGRAM","2 +/-"]
[]
[]
["TOTAL%  CR OR DB:",null,{"$f":"SUM(C18:C46)","v":0},{"$f":"SUM(D18:D46)","v":0}]
[]
["UNDERWRITER SIGNATURE","DATE"]
[]
["NOTES"]
[]
["SEE CLM EXPERIENCE AND SCHEDULE RATING PLAN RULE FOR COMPLETE DESCRIPTION OF CHARACTERISTICS"]
["DO NOT USE NEGATIVE NUMBERS WHEN APPLYING A CREDIT"]

{"sheet":"DE","index":10,"n_rows":56,"n_cols":5,"rows_kept":56,"cut":false,"hidden":false,"merged":[[7,1,7,3],[1,0,1,4],[2,0,2,4],[3,0,3,4],[4,0,4,4],[6,0,6,4],[52,1,52,2],[53,1,53,2],[29,4,32,4],[8,1,8,3],[9,1,9,3],[10,1,10,3],[11,1,11,3],[12,1,12,3],[13,1,13,3],[14,1,14,3],[16,2,16,3],[17,4,20,4],[21,4,24,4],[25,4,28,4],[50,1,50,3],[51,1,51,3],[49,0,49,4],[33,4,36,4],[37,4,40,4],[41,4,44,4],[45,4,47,4],[48,0,48,1]]}
["DELAWARE"]
["ISO COUNTRYWIDE SCHEDULE RATING PLAN"]
["As of July 2023"]
["SCHEDULE RATING MODIFICATIONS - GENERAL LIABILITY"]
["RATING INFORMATION FORM"]
[]
["A schedule rating modification may also be applied to the otherwise chargeable premium in accordance with the following table, subject to a maximum credit of -25% or debit of +25%, to reflect such characteristics of the risk as are not reflected in its experience."]
[]
["NAMED INSURED","EFFECTIVE DATE",null,null,"AIG COMPANY & POLICY NUMBER"]
[]
["INSURED LOCATION(s) BY STATE:"]
[]
[]
["RISK ","MODIFICATIONS",null,null,"REASONS"]
["CHARACTERISTICS"]
[null,"RANGE","CR"," DB"]
[null,"%","% APPLIED"]
["LOCATION: EXPOSURE INSIDE PREMISES"," 5 +/-"]
[]
[]
[]
["LOCATION:  EXPOSURE OUTSIDE PREMISES","5 +/-"]
[]
[]
[]
["PREMISES:  CONDITION AND CARE OF PREMISES","10 +/-"]
[null,null," "]
[]
[]
["EQUIPMENT:  TYPE, CONDITION AND CARE OF EQUIPMENT","10 +/-"]
[]
[]
[]
["CLASSIFICATION:  PECULIARITIES OF CLASSIFICATION","10 +/-"]
[]
[]
[]
["EMPLOYEES:  SELECTION, TRAINING, SUPERVISION,","6 +/-"]
["EXPERIENCE"]
[]
[]
["COOPERATION:  MEDICAL FACILITIES","2 +/-"]
[]
[]
[]
["COOPERATION:  SAFETY PROGRAM","2 +/-"]
[]
[]
["TOTAL%  CR OR DB:",null,{"$f":"SUM(C18:C46)","v":0},{"$f":"SUM(D18:D46)","v":0}]
[]
["UNDERWRITER SIGNATURE","DATE"]
[]
["NOTES"]
[]
["SEE CLM EXPERIENCE AND SCHEDULE RATING PLAN RULE FOR COMPLETE DESCRIPTION OF CHARACTERISTICS"]
["DO NOT USE NEGATIVE NUMBERS WHEN APPLYING A CREDIT"]

{"sheet":"DC","index":11,"n_rows":56,"n_cols":5,"rows_kept":56,"cut":false,"hidden":false,"merged":[[7,1,7,3],[1,0,1,4],[2,0,2,4],[3,0,3,4],[4,0,4,4],[6,0,6,4],[29,4,32,4],[8,1,8,3],[9,1,9,3],[10,1,10,3],[11,1,11,3],[12,1,12,3],[13,1,13,3],[14,1,14,3],[16,2,16,3],[17,4,20,4],[21,4,24,4],[25,4,28,4],[50,1,50,3],[51,1,51,3],[52,1,52,3],[54,1,54,3],[33,4,36,4],[37,4,40,4],[41,4,44,4],[45,4,47,4],[48,0,48,1]]}
["DISTRICT OF COLUMBIA"]
["ISO COUNTRYWIDE SCHEDULE RATING PLAN"]
["As of July 2023"]
["SCHEDULE RATING MODIFICATIONS - GENERAL LIABILITY"]
["RATING INFORMATION FORM"]
[]
["A schedule rating modification may also be applied to the otherwise chargeable premium in accordance with the following table, subject to a maximum credit of -25% or debit of +25%, to reflect such characteristics of the risk as are not reflected in its experience."]
[]
["NAMED INSURED","EFFECTIVE DATE",null,null,"AIG COMPANY & POLICY NUMBER"]
[]
["INSURED LOCATION(s) BY STATE:"]
[]
[]
["RISK ","MODIFICATIONS",null,null,"REASONS"]
["CHARACTERISTICS"]
[null,"RANGE","CR"," DB"]
[null,"%","% APPLIED"]
["LOCATION: EXPOSURE INSIDE PREMISES"," 5 +/-"]
[]
[]
[]
["LOCATION:  EXPOSURE OUTSIDE PREMISES","5 +/-"]
[]
[]
[]
["PREMISES:  CONDITION AND CARE OF PREMISES","10 +/-"]
[null,null," "]
[]
[]
["EQUIPMENT:  TYPE, CONDITION AND CARE OF EQUIPMENT","10 +/-"]
[]
[]
[]
["CLASSIFICATION:  PECULIARITIES OF CLASSIFICATION","10 +/-"]
[]
[]
[]
["EMPLOYEES:  SELECTION, TRAINING, SUPERVISION,","6 +/-"]
["EXPERIENCE"]
[]
[]
["COOPERATION:  MEDICAL FACILITIES","2 +/-"]
[]
[]
[]
["COOPERATION:  SAFETY PROGRAM","2 +/-"]
[]
[]
["TOTAL%  CR OR DB:",null,{"$f":"SUM(C18:C46)","v":0},{"$f":"SUM(D18:D46)","v":0}]
[]
["UNDERWRITER SIGNATURE","DATE"]
[]
["NOTES"]
[]
["SEE CLM EXPERIENCE AND SCHEDULE RATING PLAN RULE FOR COMPLETE DESCRIPTION OF CHARACTERISTICS"]
["DO NOT USE NEGATIVE NUMBERS WHEN APPLYING A CREDIT"]

{"sheet":"FL","index":12,"n_rows":57,"n_cols":5,"rows_kept":57,"cut":false,"hidden":false,"merged":[[7,1,7,3],[1,0,1,4],[2,0,2,4],[3,0,3,4],[4,0,4,4],[6,0,6,4],[29,4,32,4],[8,1,8,3],[9,1,9,3],[10,1,10,3],[11,1,11,3],[12,1,12,3],[13,1,13,3],[14,1,14,3],[16,2,16,3],[17,4,20,4],[21,4,24,4],[25,4,28,4],[51,1,51,3],[52,1,52,3],[53,1,53,3],[54,1,54,3],[33,4,36,4],[37,4,40,4],[42,4,45,4],[46,4,48,4],[49,0,49,1],[50,0,50,4]]}
["FLORIDA"]
["ISO COUNTRYWIDE SCHEDULE RATING PLAN"]
["As of July 2023"]
["SCHEDULE RATING MODIFICATIONS - GENERAL LIABILITY"]
["RATING INFORMATION FORM"]
[]
["A schedule rating modification may also be applied to the otherwise chargeable premium in accordance with the following table, subject to a maximum credit of -25% or debit of +25%, to reflect such characteristics of the risk as are not reflected in its experience."]
[]
["NAMED INSURED","EFFECTIVE DATE",null,null,"AIG COMPANY & POLICY NUMBER"]
[]
["INSURED LOCATION(s) BY STATE:"]
[]
[]
["RISK ","MODIFICATIONS",null,null,"REASONS"]
["CHARACTERISTICS"]
[null,"RANGE","CR"," DB"]
[null,"%","% APPLIED"]
["LOCATION: EXPOSURE INSIDE PREMISES"," 5 +/-"]
[]
[]
[]
["LOCATION:  EXPOSURE OUTSIDE PREMISES","5 +/-"]
[]
[]
[]
["PREMISES:  CONDITION AND CARE OF PREMISES","10 +/-"]
[null,null," "]
[]
[]
["EQUIPMENT:  TYPE, CONDITION AND CARE OF EQUIPMENT","10 +/-"]
[]
[]
[]
["CLASSIFICATION:  PECULIARITIES OF CLASSIFICATION","10 +/-"]
[]
[]
[]
["EMPLOYEES:  SELECTION, TRAINING, SUPERVISION,","6 +/-"]
["EXPERIENCE"]
[]
[]
[]
["COOPERATION:  MEDICAL FACILITIES","2 +/-"]
[]
[]
[]
["COOPERATION:  SAFETY PROGRAM","2 +/-"]
[]
[]
["TOTAL%  CR OR DB:",null,{"$f":"SUM(C18:C47)","v":0},{"$f":"SUM(D18:D47)","v":0}]
[]
["UNDERWRITER SIGNATURE","DATE"]
[]
["NOTES"]
[]
["SEE CLM EXPERIENCE AND SCHEDULE RATING PLAN RULE FOR COMPLETE DESCRIPTION OF CHARACTERISTICS"]
["DO NOT USE NEGATIVE NUMBERS WHEN APPLYING A CREDIT"]

{"sheet":"GA","index":13,"n_rows":57,"n_cols":5,"rows_kept":57,"cut":false,"hidden":false,"merged":[[49,0,49,1],[16,2,16,3],[1,0,1,4],[3,0,3,4],[4,0,4,4],[2,0,2,4],[6,0,6,4],[13,1,13,3]]}
["GEORGIA"]
["   GEORGIA SCHEDULE RATING PLAN"]
["As of July 2023"]
["  SCHEDULE RATING MODIFICATIONS - GENERAL LIABILITY"]
["RATING INFORMATION FORM"]
[]
["A schedule rating modification may also be applied to the otherwise chargeable premium in accordance with the following table, subject to a maximum credit of -15% or debit of +15%, to reflect such characteristics of the risk as are not reflected in its experience."]
[]
["NAMED INSURED",null,"EFFECTIVE DATE",null,"AIG COMPANY & POLICY NUMBER"]
[]
["INSURED LOCATION(s) BY STATE:"]
[]
[]
["RISK ","MODIFICATIONS",null,null,"REASONS"]
["CHARACTERISTICS"]
[null,"RANGE","CR"," DB"]
[null,"%","% APPLIED"]
["LOCATION: EXPOSURE INSIDE PREMISES"," 5 +/-"]
[]
[]
[]
["LOCATION:  EXPOSURE OUTSIDE PREMISES","5 +/-"]
[]
[]
[]
["PREMISES: CONDITION AND CARE","10 +/-"]
[null,null," "]
[]
[]
["EQUIPMENT:  TYPE, CONDITION AND CARE ","10 +/-"]
[]
[]
[]
["PECULIARITIES OF CLASSIFICATION","10 +/-"]
[]
[]
[]
["EMPLOYEES:  SELECTION, TRAINING, SUPERVISION,","6 +/-"]
["EXPERIENCE"]
[]
[]
[]
["COOPERATION:  MEDICAL FACILITIES","2 +/-"]
[]
[]
[]
["COOPERATION:  SAFETY PROGRAM","2 +/-"]
[]
[]
["TOTAL%  CR OR DB:",null,{"$f":"SUM(C18:C47)","v":0},{"$f":"SUM(D18:D47)","v":0}]
[]
["UNDERWRITER SIGNATURE",null,"DATE"]
[]
["NOTES"]
[]
["SEE CLM EXPERIENCE AND SCHEDULE RATING PLAN RULE FOR COMPLETE DESCRIPTION OF CHARACTERISTICS"]
["DO NOT USE NEGATIVE NUMBERS WHEN APPLYING A CREDIT"]

{"sheet":"HI","index":14,"n_rows":2,"n_cols":1,"rows_kept":2,"cut":false,"hidden":false,"merged":[[0,0,0,8],[1,0,1,8]]}
["HAWAII"]
["SCHEDULE RATING IS NOT ALLOWED IN HAWAII "]

{"sheet":"ID","index":15,"n_rows":57,"n_cols":5,"rows_kept":57,"cut":false,"hidden":false,"merged":[[49,0,49,1],[16,2,16,3],[13,1,13,3],[1,0,1,4],[3,0,3,4],[4,0,4,4],[2,0,2,4],[6,0,6,4]]}
["IDAHO"]
[" IDAHO SCHEDULE RATING PLAN"]
["As of July 2023"]
["  SCHEDULE RATING MODIFICATIONS - GENERAL LIABILITY"]
["RATING INFORMATION FORM"]
[]
["A schedule rating modification may also be applied to the otherwise chargeable premium in accordance with the following table, subject to a maximum credit of -40% or debit of +40%, to reflect such characteristics of the risk as are not reflected in its experience."]
[]
["NAMED INSURED","EFFECTIVE DATE",null,null,"AIG COMPANY & POLICY NUMBER"]
[]
["INSURED LOCATION(s) BY STATE:"]
[]
[]
["RISK ","MODIFICATIONS",null,null,"REASONS"]
["CHARACTERISTICS"]
[null,"RANGE","CR"," DB"]
[null,"%","% APPLIED"]
["LOCATION: EXPOSURE INSIDE PREMISES"," 5 +/-"]
[]
[]
[]
["LOCATION:  EXPOSURE OUTSIDE PREMISES","5 +/-"]
[]
[]
[]
["PREMISES: CONDITION AND CARE","10 +/-"]
[null,null," "]
[]
[]
["EQUIPMENT:  TYPE, CONDITION AND CARE ","10 +/-"]
[]
[]
[]
["PECULIARITIES OF CLASSIFICATION","10 +/-"]
[]
[]
[]
["EMPLOYEES:  SELECTION, TRAINING, SUPERVISION,","6 +/-"]
["EXPERIENCE"]
[]
[]
["COOPERATION:  MEDICAL FACILITIES","2 +/-"]
[]
[]
[]
["COOPERATION:  SAFETY PROGRAM","2 +/-"]
[]
[]
[]
["TOTAL%  CR OR DB:",null,{"$f":"SUM(C18:C46)","v":0},{"$f":"SUM(D18:D46)","v":0}]
[]
["UNDERWRITER SIGNATURE",null,"DATE"]
[]
["NOTES"]
[]
["SEE CLM EXPERIENCE AND SCHEDULE RATING PLAN RULE FOR COMPLETE DESCRIPTION OF CHARACTERISTICS"]
["DO NOT USE NEGATIVE NUMBERS WHEN APPLYING A CREDIT"]

{"sheet":"IL","index":16,"n_rows":56,"n_cols":5,"rows_kept":56,"cut":false,"hidden":false,"merged":[[12,1,12,3],[1,0,1,4],[2,0,2,4],[3,0,3,4],[4,0,4,4],[5,0,5,4],[6,1,6,3],[7,1,7,3],[8,1,8,3],[9,1,9,3],[10,1,10,3],[11,1,11,3],[48,0,48,1],[13,1,13,3],[15,2,15,3],[16,4,19,4],[20,4,23,4],[24,4,27,4],[28,4,31,4],[30,5,30,6],[32,4,35,4],[36,4,39,4],[41,4,44,4],[45,4,47,4],[49,0,49,4],[50,1,50,3],[51,1,51,3],[52,1,52,3],[53,1,53,3]]}
["ILLINOIS"]
["AIG PROPRIETARY SCHEDULE RATING PLAN"]
["As of July 2023"]
["SCHEDULE RATING MODIFICATIONS - GENERAL LIABILITY"]
["RATING INFORMATION FORM"]
["A schedule rating modification may also be applied to the otherwise chargeable premium in accordance with the following table, subject to a maximum credit of -50% or debit of +50%, to reflect such characteristics of the risk as are not reflected in its experience."]
[]
["NAMED INSURED","EFFECTIVE DATE",null,null,"AIG COMPANY & POLICY NUMBER"]
[]
["INSURED LOCATION(s) BY STATE:"]
[]
[]
["RISK ","MODIFICATIONS",null,null,"REASONS"]
["CHARACTERISTICS"]
[null,"RANGE","CR"," DB"]
[null,"%","% APPLIED"]
["LOCATION: EXPOSURE INSIDE PREMISES","8 +/-"]
[]
[]
[]
["LOCATION:  EXPOSURE OUTSIDE PREMISES","8 +/-"]
[]
[]
[]
["PREMISES:  CONDITION AND CARE OF PREMISES","13 +/-"]
[]
[]
[]
["EQUIPMENT:  TYPE, CONDITION AND CARE OF EQUIPMENT","13 +/-"]
[]
[]
[]
["CLASSIFICATION:  PECULIARITIES OF CLASSIFICATION","13 +/-"]
[]
[]
[]
["EMPLOYEES:  SELECTION, TRAINING, SUPERVISION,","10 +/-"]
["EXPERIENCE"]
[]
[]
[]
["COOPERATION:  MEDICAL FACILITIES","5 +/-"]
[]
[]
[]
["COOPERATION:  SAFETY PROGRAM","5 +/-"]
[]
[]
["TOTAL%  CR OR DB:",null,{"$f":"SUM(C17:C48)","v":0},{"$f":"SUM(D17:D48)","v":0}]
[]
["UNDERWRITER SIGNATURE","DATE"]
[]
["NOTES"]
[]
["SEE CLM EXPERIENCE AND SCHEDULE RATING PLAN RULE FOR COMPLETE DESCRIPTION OF CHARACTERISTICS"]
["DO NOT USE NEGATIVE NUMBERS WHEN APPLYING A CREDIT"]

{"sheet":"IN","index":17,"n_rows":56,"n_cols":5,"rows_kept":56,"cut":false,"hidden":false,"merged":[[12,1,12,3],[1,0,1,4],[2,0,2,4],[3,0,3,4],[4,0,4,4],[5,0,5,4],[6,1,6,3],[7,1,7,3],[8,1,8,3],[9,1,9,3],[10,1,10,3],[11,1,11,3],[48,0,48,1],[13,1,13,3],[15,2,15,3],[16,4,19,4],[20,4,23,4],[24,4,27,4],[28,4,31,4],[30,5,30,6],[32,4,35,4],[36,4,39,4],[41,4,44,4],[45,4,47,4],[49,0,49,4],[50,1,50,3],[51,1,51,3],[52,1,52,3],[54,1,54,3]]}
["INDIANA"]
["AIG PROPRIETARY SCHEDULE RATING PLAN"]
["As of July 2023"]
["SCHEDULE RATING MODIFICATIONS - GENERAL LIABILITY"]
["RATING INFORMATION FORM"]
["A schedule rating modification may also be applied to the otherwise chargeable premium in accordance with the following table, subject to a maximum credit of -50% or debit of +50%, to reflect such characteristics of the risk as are not reflected in its experience."]
[]
["NAMED INSURED","EFFECTIVE DATE",null,null,"AIG COMPANY & POLICY NUMBER"]
[]
["INSURED LOCATION(s) BY STATE:"]
[]
[]
["RISK ","MODIFICATIONS",null,null,"REASONS"]
["CHARACTERISTICS"]
[null,"RANGE","CR"," DB"]
[null,"%","% APPLIED"]
["LOCATION: EXPOSURE INSIDE PREMISES","8 +/-"]
[]
[]
[]
["LOCATION:  EXPOSURE OUTSIDE PREMISES","8 +/-"]
[]
[]
[]
["PREMISES:  CONDITION AND CARE OF PREMISES","13 +/-"]
[]
[]
[]
["EQUIPMENT:  TYPE, CONDITION AND CARE OF EQUIPMENT","13 +/-"]
[]
[]
[]
["CLASSIFICATION:  PECULIARITIES OF CLASSIFICATION","13 +/-"]
[]
[]
[]
["EMPLOYEES:  SELECTION, TRAINING, SUPERVISION,","10 +/-"]
["EXPERIENCE"]
[]
[]
[]
["COOPERATION:  MEDICAL FACILITIES","5 +/-"]
[]
[]
[]
["COOPERATION:  SAFETY PROGRAM","5 +/-"]
[]
[]
["TOTAL%  CR OR DB:",null,{"$f":"SUM(C17:C48)","v":0},{"$f":"SUM(D17:D48)","v":0}]
[]
["UNDERWRITER SIGNATURE","DATE"]
[]
["NOTES"]
[]
["SEE CLM EXPERIENCE AND SCHEDULE RATING PLAN RULE FOR COMPLETE DESCRIPTION OF CHARACTERISTICS"]
["DO NOT USE NEGATIVE NUMBERS WHEN APPLYING A CREDIT"]

{"sheet":"IA","index":18,"n_rows":56,"n_cols":5,"rows_kept":56,"cut":false,"hidden":false,"merged":[[1,0,1,4],[2,0,2,4],[3,0,3,4],[4,0,4,4],[6,0,6,4],[29,4,32,4],[8,1,8,3],[9,1,9,3],[10,1,10,3],[11,1,11,3],[12,1,12,3],[13,1,13,3],[14,1,14,3],[16,2,16,3],[17,4,20,4],[21,4,24,4],[25,4,28,4],[50,1,50,3],[51,1,51,3],[52,1,52,3],[53,1,53,3],[33,4,36,4],[37,4,40,4],[41,4,44,4],[45,4,47,4],[48,0,48,1],[49,0,49,4]]}
["IOWA"]
["ISO COUNTRYWIDE SCHEDULE RATING PLAN"]
["As of July 2023"]
["SCHEDULE RATING MODIFICATIONS - GENERAL LIABILITY"]
["RATING INFORMATION FORM"]
[]
["A schedule rating modification may also be applied to the otherwise chargeable premium in accordance with the following table, subject to a maximum credit of -25% or debit of +25%, to reflect such characteristics of the risk as are not reflected in its experience."]
[]
["NAMED INSURED","EFFECTIVE DATE",null,null,"AIG COMPANY & POLICY NUMBER"]
[]
["INSURED LOCATION(s) BY STATE:"]
[]
[]
["RISK ","MODIFICATIONS",null,null,"REASONS"]
["CHARACTERISTICS"]
[null,"RANGE","CR"," DB"]
[null,"%","% APPLIED"]
["LOCATION: EXPOSURE INSIDE PREMISES"," 5 +/-"]
[]
[]
[]
["LOCATION:  EXPOSURE OUTSIDE PREMISES","5 +/-"]
[]
[]
[]
["PREMISES:  CONDITION AND CARE OF PREMISES","10 +/-"]
[null,null," "]
[]
[]
["EQUIPMENT:  TYPE, CONDITION AND CARE OF EQUIPMENT","10 +/-"]
[]
[]
[]
["CLASSIFICATION:  PECULIARITIES OF CLASSIFICATION","10 +/-"]
[]
[]
[]
["EMPLOYEES:  SELECTION, TRAINING, SUPERVISION,","6 +/-"]
["EXPERIENCE"]
[]
[]
["COOPERATION:  MEDICAL FACILITIES","2 +/-"]
[]
[]
[]
["COOPERATION:  SAFETY PROGRAM","2 +/-"]
[]
[]
["TOTAL%  CR OR DB:",null,{"$f":"SUM(C18:C46)","v":0},{"$f":"SUM(D18:D46)","v":0}]
[]
["UNDERWRITER SIGNATURE","DATE"]
[]
["NOTES"]
[]
["SEE CLM EXPERIENCE AND SCHEDULE RATING PLAN RULE FOR COMPLETE DESCRIPTION OF CHARACTERISTICS"]
["DO NOT USE NEGATIVE NUMBERS WHEN APPLYING A CREDIT"]

{"sheet":"KS","index":19,"n_rows":55,"n_cols":5,"rows_kept":55,"cut":false,"hidden":false,"merged":[[7,1,7,3],[1,0,1,4],[3,0,3,4],[4,0,4,4],[5,0,5,4],[6,1,6,3],[29,5,29,6],[8,1,8,3],[9,1,9,3],[10,1,10,3],[11,1,11,3],[12,1,12,3],[14,2,14,3],[15,4,18,4],[19,4,22,4],[23,4,26,4],[27,4,30,4],[49,1,49,3],[50,1,50,3],[51,1,51,3],[52,1,52,3],[31,4,34,4],[35,4,38,4],[39,4,42,4],[43,4,46,4],[47,0,47,1],[48,0,48,4]]}
["KANSAS"]
["AIG PROPRIETARY SCHEDULE RATING PLAN"]
["As of July 2023"]
["SCHEDULE RATING MODIFICATIONS - GENERAL LIABILITY"]
["RATING INFORMATION FORM"]
["A schedule rating modification may also be applied to the otherwise chargeable premium in accordance with the following table, subject to a maximum credit of -40% or debit of +40%, to reflect such characteristics of the risk as are not reflected in its experience."]
[]
["NAMED INSURED","EFFECTIVE DATE",null,null,"AIG COMPANY & POLICY NUMBER"]
[]
["INSURED LOCATION(s) BY STATE:"]
[]
["RISK ","MODIFICATIONS",null,null,"REASONS"]
["CHARACTERISTICS"]
[null,"RANGE","CR"," DB"]
[null,"%","% APPLIED"]
["LOCATION: EXPOSURE INSIDE PREMISES","8 +/-"]
[]
[]
[]
["LOCATION:  EXPOSURE OUTSIDE PREMISES","8 +/-"]
[]
[]
[]
["PREMISES:  CONDITION AND CARE OF PREMISES","13 +/-"]
[]
[]
[]
["EQUIPMENT:  TYPE, CONDITION AND CARE OF EQUIPMENT","13 +/-"]
[]
[]
[]
["CLASSIFICATION:  PECULIARITIES OF CLASSIFICATION","13 +/-"]
[]
[]
[]
["EMPLOYEES:  SELECTION, TRAINING, SUPERVISION,","10 +/-"]
["EXPERIENCE"]
[]
[]
["COOPERATION:  MEDICAL FACILITIES","5 +/-"]
[]
[]
[]
["COOPERATION:  SAFETY PROGRAM","5 +/-"]
[]
[]
[]
["TOTAL%  CR OR DB:",null,{"$f":"SUM(C16:C47)","v":0},{"$f":"SUM(D16:D47)","v":0}]
[]
["UNDERWRITER SIGNATURE","DATE"]
[]
["NOTES"]
[]
["SEE CLM EXPERIENCE AND SCHEDULE RATING PLAN RULE FOR COMPLETE DESCRIPTION OF CHARACTERISTICS"]
["DO NOT USE NEGATIVE NUMBERS WHEN APPLYING A CREDIT"]

{"sheet":"KY","index":20,"n_rows":55,"n_cols":5,"rows_kept":55,"cut":false,"hidden":false,"merged":[[12,1,12,3],[1,0,1,4],[2,0,2,4],[3,0,3,4],[4,0,4,4],[5,0,5,4],[6,1,6,3],[7,1,7,3],[8,1,8,3],[9,1,9,3],[10,1,10,3],[11,1,11,3],[47,0,47,1],[13,1,13,3],[15,2,15,3],[16,4,19,4],[20,4,23,4],[24,4,27,4],[28,4,31,4],[30,5,30,6],[32,4,35,4],[36,4,39,4],[40,4,43,4],[44,4,46,4],[48,0,48,4],[49,1,49,3],[50,1,50,3],[51,1,51,3],[52,1,52,3]]}
["KENTUCKY"]
["AIG PROPRIETARY SCHEDULE RATING PLAN"]
["As of July 2023"]
["SCHEDULE RATING MODIFICATIONS - GENERAL LIABILITY"]
["RATING INFORMATION FORM"]
["A schedule rating modification may also be applied to the otherwise chargeable premium in accordance with the following table, subject to a maximum credit of -50% or debit of +50%, to reflect such characteristics of the risk as are not reflected in its experience."]
[]
["NAMED INSURED","EFFECTIVE DATE",null,null,"AIG COMPANY & POLICY NUMBER"]
[]
["INSURED LOCATION(s) BY STATE:"]
[]
[]
["RISK ","MODIFICATIONS",null,null,"REASONS"]
["CHARACTERISTICS"]
[null,"RANGE","CR"," DB"]
[null,"%","% APPLIED"]
["LOCATION: EXPOSURE INSIDE PREMISES","8 +/-"]
[]
[]
[]
["LOCATION:  EXPOSURE OUTSIDE PREMISES","8 +/-"]
[]
[]
[]
["PREMISES:  CONDITION AND CARE OF PREMISES","13 +/-"]
[]
[]
[]
["EQUIPMENT:  TYPE, CONDITION AND CARE OF EQUIPMENT","13 +/-"]
[]
[]
[]
["CLASSIFICATION:  PECULIARITIES OF CLASSIFICATION","13 +/-"]
[]
[]
[]
["EMPLOYEES:  SELECTION, TRAINING, SUPERVISION,","10 +/-"]
["EXPERIENCE"]
[]
[]
["COOPERATION:  MEDICAL FACILITIES","5 +/-"]
[]
[]
[]
["COOPERATION:  SAFETY PROGRAM","5 +/-"]
[]
[]
["TOTAL%  CR OR DB:",null,{"$f":"SUM(C17:C47)","v":0},{"$f":"SUM(D17:D47)","v":0}]
[]
["UNDERWRITER SIGNATURE","DATE"]
[]
["NOTES"]
[]
["SEE CLM EXPERIENCE AND SCHEDULE RATING PLAN RULE FOR COMPLETE DESCRIPTION OF CHARACTERISTICS"]
["DO NOT USE NEGATIVE NUMBERS WHEN APPLYING A CREDIT"]

{"sheet":"LA","index":21,"n_rows":57,"n_cols":5,"rows_kept":57,"cut":false,"hidden":false,"merged":[[7,1,7,3],[1,0,1,4],[2,0,2,4],[3,0,3,4],[4,0,4,4],[6,0,6,4],[29,4,32,4],[8,1,8,3],[9,1,9,3],[10,1,10,3],[11,1,11,3],[12,1,12,3],[13,1,13,3],[14,1,14,3],[16,2,16,3],[17,4,20,4],[21,4,24,4],[25,4,28,4],[51,1,51,3],[52,1,52,3],[53,1,53,3],[54,1,54,3],[33,4,36,4],[37,4,40,4],[41,4,44,4],[45,4,48,4],[49,0,49,1],[50,0,50,4]]}
["LOUISIANA"]
["ISO COUNTRYWIDE SCHEDULE RATING PLAN"]
["As of July 2023"]
["SCHEDULE RATING MODIFICATIONS - GENERAL LIABILITY"]
["RATING INFORMATION FORM"]
[]
["A schedule rating modification may also be applied to the otherwise chargeable premium in accordance with the following table, subject to a maximum credit of -25% or debit of +25%, to reflect such characteristics of the risk as are not reflected in its experience."]
[]
["NAMED INSURED","EFFECTIVE DATE",null,null,"AIG COMPANY & POLICY NUMBER"]
[]
["INSURED LOCATION(s) BY STATE:"]
[]
[]
["RISK ","MODIFICATIONS",null,null,"REASONS"]
["CHARACTERISTICS"]
[null,"RANGE","CR"," DB"]
[null,"%","% APPLIED"]
["LOCATION: EXPOSURE INSIDE PREMISES"," 5 +/-"]
[]
[]
[]
["LOCATION:  EXPOSURE OUTSIDE PREMISES","5 +/-"]
[]
[]
[]
["PREMISES:  CONDITION AND CARE OF PREMISES","10 +/-"]
[null,null," "]
[]
[]
["EQUIPMENT:  TYPE, CONDITION AND CARE OF EQUIPMENT","10 +/-"]
[]
[]
[]
["CLASSIFICATION:  PECULIARITIES OF CLASSIFICATION","10 +/-"]
[]
[]
[]
["EMPLOYEES:  SELECTION, TRAINING, SUPERVISION,","6 +/-"]
["EXPERIENCE"]
[]
[]
["COOPERATION:  MEDICAL FACILITIES","2 +/-"]
[]
[]
[]
["COOPERATION:  SAFETY PROGRAM","2 +/-"]
[]
[]
[]
["TOTAL%  CR OR DB:",null,{"$f":"SUM(C18:C46)","v":0},{"$f":"SUM(D18:D46)","v":0}]
[]
["UNDERWRITER SIGNATURE","DATE"]
[]
["NOTES"]
[]
["SEE CLM EXPERIENCE AND SCHEDULE RATING PLAN RULE FOR COMPLETE DESCRIPTION OF CHARACTERISTICS"]
["DO NOT USE NEGATIVE NUMBERS WHEN APPLYING A CREDIT"]

{"sheet":"MA","index":22,"n_rows":56,"n_cols":5,"rows_kept":56,"cut":false,"hidden":false,"merged":[[7,1,7,3],[1,0,1,4],[2,0,2,4],[3,0,3,4],[4,0,4,4],[6,0,6,4],[29,4,32,4],[8,1,8,3],[9,1,9,3],[10,1,10,3],[11,1,11,3],[12,1,12,3],[13,1,13,3],[14,1,14,3],[16,2,16,3],[17,4,20,4],[21,4,24,4],[25,4,28,4],[50,1,50,3],[51,1,51,3],[52,1,52,3],[53,1,53,3],[33,4,36,4],[37,4,40,4],[41,4,44,4],[45,4,47,4],[48,0,48,1],[49,0,49,4]]}
["MASSACHUSETTS"]
["ISO COUNTRYWIDE SCHEDULE RATING PLAN"]
["As of July 2023"]
["SCHEDULE RATING MODIFICATIONS - GENERAL LIABILITY"]
["RATING INFORMATION FORM"]
[]
["A schedule rating modification may also be applied to the otherwise chargeable premium in accordance with the following table, subject to a maximum credit of -25% or debit of +25%, to reflect such characteristics of the risk as are not reflected in its experience."]
[]
["NAMED INSURED","EFFECTIVE DATE",null,null,"AIG COMPANY & POLICY NUMBER"]
[]
["INSURED LOCATION(s) BY STATE:"]
[]
[]
["RISK ","MODIFICATIONS",null,null,"REASONS"]
["CHARACTERISTICS"]
[null,"RANGE","CR"," DB"]
[null,"%","% APPLIED"]
["LOCATION: EXPOSURE INSIDE PREMISES"," 5 +/-"]
[]
[]
[]
["LOCATION:  EXPOSURE OUTSIDE PREMISES","5 +/-"]
[]
[]
[]
["PREMISES:  CONDITION AND CARE OF PREMISES","10 +/-"]
[null,null," "]
[]
[]
["EQUIPMENT:  TYPE, CONDITION AND CARE OF EQUIPMENT","10 +/-"]
[]
[]
[]
["CLASSIFICATION:  PECULIARITIES OF CLASSIFICATION","10 +/-"]
[]
[]
[]
["EMPLOYEES:  SELECTION, TRAINING, SUPERVISION,","6 +/-"]
["EXPERIENCE"]
[]
[]
["COOPERATION:  MEDICAL FACILITIES","2 +/-"]
[]
[]
[]
["COOPERATION:  SAFETY PROGRAM","2 +/-"]
[]
[]
["TOTAL%  CR OR DB:",null,{"$f":"SUM(C18:C46)","v":0},{"$f":"SUM(D18:D46)","v":0}]
[]
["UNDERWRITER SIGNATURE","DATE"]
[]
["NOTES"]
[]
["SEE CLM EXPERIENCE AND SCHEDULE RATING PLAN RULE FOR COMPLETE DESCRIPTION OF CHARACTERISTICS"]
["DO NOT USE NEGATIVE NUMBERS WHEN APPLYING A CREDIT"]

{"sheet":"ME","index":23,"n_rows":56,"n_cols":5,"rows_kept":56,"cut":false,"hidden":false,"merged":[[7,1,7,3],[1,0,1,4],[3,0,3,4],[4,0,4,4],[5,0,5,4],[6,1,6,3],[30,5,30,6],[8,1,8,3],[9,1,9,3],[10,1,10,3],[11,1,11,3],[12,1,12,3],[13,1,13,3],[15,2,15,3],[16,4,19,4],[20,4,23,4],[24,4,27,4],[28,4,31,4],[50,1,50,3],[51,1,51,3],[52,1,52,3],[53,1,53,3],[32,4,35,4],[36,4,39,4],[40,4,43,4],[44,4,47,4],[48,0,48,1],[49,0,49,4]]}
["MAINE"]
["AIG PROPRIETARY SCHEDULE RATING PLAN"]
["As of July 2023"]
["SCHEDULE RATING MODIFICATIONS - GENERAL LIABILITY"]
["RATING INFORMATION FORM"]
["A schedule rating modification may also be applied to the otherwise chargeable premium in accordance with the following table, subject to a maximum credit of -40% or debit of +40%, to reflect such characteristics of the risk as are not reflected in its experience."]
[]
["NAMED INSURED","EFFECTIVE DATE",null,null,"AIG COMPANY & POLICY NUMBER"]
[]
["INSURED LOCATION(s) BY STATE:"]
[]
[]
["RISK ","MODIFICATIONS",null,null,"REASONS"]
["CHARACTERISTICS"]
[null,"RANGE","CR"," DB"]
[null,"%","% APPLIED"]
["LOCATION: EXPOSURE INSIDE PREMISES","8 +/-"]
[]
[]
[]
["LOCATION:  EXPOSURE OUTSIDE PREMISES","8 +/-"]
[]
[]
[]
["PREMISES:  CONDITION AND CARE OF PREMISES","13 +/-"]
[]
[]
[]
["EQUIPMENT:  TYPE, CONDITION AND CARE OF EQUIPMENT","13 +/-"]
[]
[]
[]
["CLASSIFICATION:  PECULIARITIES OF CLASSIFICATION","13 +/-"]
[]
[]
[]
["EMPLOYEES:  SELECTION, TRAINING, SUPERVISION,","10 +/-"]
["EXPERIENCE"]
[]
[]
["COOPERATION:  MEDICAL FACILITIES","5 +/-"]
[]
[]
[]
["COOPERATION:  SAFETY PROGRAM","5 +/-"]
[]
[]
[]
["TOTAL%  CR OR DB:",null,{"$f":"SUM(C17:C48)","v":0},{"$f":"SUM(D17:D48)","v":0}]
[]
["UNDERWRITER SIGNATURE","DATE"]
[]
["NOTES"]
[]
["SEE CLM EXPERIENCE AND SCHEDULE RATING PLAN RULE FOR COMPLETE DESCRIPTION OF CHARACTERISTICS"]
["DO NOT USE NEGATIVE NUMBERS WHEN APPLYING A CREDIT"]

{"sheet":"MD","index":24,"n_rows":59,"n_cols":5,"rows_kept":59,"cut":false,"hidden":false,"merged":[[7,1,7,3],[1,0,1,4],[3,0,3,4],[4,0,4,4],[5,0,5,4],[6,1,6,3],[30,5,30,6],[8,1,8,3],[9,1,9,3],[10,1,10,3],[11,1,11,3],[12,1,12,3],[13,1,13,3],[15,2,15,3],[16,4,19,4],[20,4,23,4],[24,4,27,4],[28,4,31,4],[50,1,50,3],[51,1,51,3],[52,1,52,3],[53,1,53,3],[32,4,35,4],[36,4,39,4],[40,4,43,4],[44,4,47,4],[48,0,48,1],[49,0,49,4]]}
["MARYLAND"]
["AIG PROPRIETARY SCHEDULE RATING PLAN"]
["As of July 2023"]
["SCHEDULE RATING MODIFICATIONS - GENERAL LIABILITY"]
["RATING INFORMATION FORM"]
["A schedule rating modification may also be applied to the otherwise chargeable premium in accordance with the following table, subject to a maximum credit of -40% or debit of +40%, to reflect such characteristics of the risk as are not reflected in its experience."]
[]
["NAMED INSURED","EFFECTIVE DATE",null,null,"AIG COMPANY & POLICY NUMBER"]
[]
["INSURED LOCATION(s) BY STATE:"]
[]
[]
["RISK ","MODIFICATIONS",null,null,"REASONS"]
["CHARACTERISTICS"]
[null,"RANGE","CR"," DB"]
[null,"%","% APPLIED"]
["LOCATION: EXPOSURE INSIDE PREMISES","8 +/-"]
[]
[]
[]
["LOCATION:  EXPOSURE OUTSIDE PREMISES","8 +/-"]
[]
[]
[]
["PREMISES:  CONDITION AND CARE OF PREMISES","13 +/-"]
[]
[]
[]
["EQUIPMENT:  TYPE, CONDITION AND CARE OF EQUIPMENT","13 +/-"]
[]
[]
[]
["CLASSIFICATION:  PECULIARITIES OF CLASSIFICATION","13 +/-"]
[]
[]
[]
["EMPLOYEES:  SELECTION, TRAINING, SUPERVISION,","10 +/-"]
["EXPERIENCE"]
[]
[]
["COOPERATION:  MEDICAL FACILITIES","5 +/-"]
[]
[]
[]
["COOPERATION:  SAFETY PROGRAM","5 +/-"]
[]
[]
[]
["TOTAL%  CR OR DB:",null,{"$f":"SUM(C17:C48)","v":0},{"$f":"SUM(D17:D48)","v":0}]
[]
["UNDERWRITER SIGNATURE","DATE"]
[]
["NOTES"]
[]
["SEE CLM EXPERIENCE AND SCHEDULE RATING PLAN RULE FOR COMPLETE DESCRIPTION OF CHARACTERISTICS"]
["DO NOT USE NEGATIVE NUMBERS WHEN APPLYING A CREDIT"]
[]
[]
[null,null,null,null,{"$f":"+E59:E59","v":0}]

{"sheet":"MI","index":25,"n_rows":57,"n_cols":5,"rows_kept":57,"cut":false,"hidden":false,"merged":[[7,1,7,3],[1,0,1,4],[2,0,2,4],[3,0,3,4],[4,0,4,4],[6,0,6,4],[29,4,32,4],[8,1,8,3],[9,1,9,3],[10,1,10,3],[11,1,11,3],[12,1,12,3],[13,1,13,3],[14,1,14,3],[16,2,16,3],[17,4,20,4],[21,4,24,4],[25,4,28,4],[51,1,51,3],[52,1,52,3],[53,1,53,3],[54,1,54,3],[33,4,36,4],[37,4,40,4],[41,4,44,4],[45,4,48,4],[49,0,49,1],[50,0,50,4]]}
["MICHIGAN"]
["ISO COUNTRYWIDE SCHEDULE RATING PLAN"]
["As of July 2023"]
["SCHEDULE RATING MODIFICATIONS - GENERAL LIABILITY"]
["RATING INFORMATION FORM"]
[]
["A schedule rating modification may also be applied to the otherwise chargeable premium in accordance with the following table, subject to a maximum credit of -25% or debit of +25%, to reflect such characteristics of the risk as are not reflected in its experience."]
[]
["NAMED INSURED","EFFECTIVE DATE",null,null,"AIG COMPANY & POLICY NUMBER"]
[]
["INSURED LOCATION(s) BY STATE:"]
[]
[]
["RISK ","MODIFICATIONS",null,null,"REASONS"]
["CHARACTERISTICS"]
[null,"RANGE","CR"," DB"]
[null,"%","% APPLIED"]
["LOCATION: EXPOSURE INSIDE PREMISES"," 5 +/-"]
[]
[]
[]
["LOCATION:  EXPOSURE OUTSIDE PREMISES","5 +/-"]
[]
[]
[]
["PREMISES:  CONDITION AND CARE OF PREMISES","10 +/-"]
[null,null," "]
[]
[]
["EQUIPMENT:  TYPE, CONDITION AND CARE OF EQUIPMENT","10 +/-"]
[]
[]
[]
["CLASSIFICATION:  PECULIARITIES OF CLASSIFICATION","10 +/-"]
[]
[]
[]
["EMPLOYEES:  SELECTION, TRAINING, SUPERVISION,","6 +/-"]
["EXPERIENCE"]
[]
[]
["COOPERATION:  MEDICAL FACILITIES","2 +/-"]
[]
[]
[]
["COOPERATION:  SAFETY PROGRAM","2 +/-"]
[]
[]
[]
["TOTAL%  CR OR DB:",null,{"$f":"SUM(C18:C46)","v":0},{"$f":"SUM(D18:D46)","v":0}]
[]
["UNDERWRITER SIGNATURE","DATE"]
[]
["NOTES"]
[]
["SEE CLM EXPERIENCE AND SCHEDULE RATING PLAN RULE FOR COMPLETE DESCRIPTION OF CHARACTERISTICS"]
["DO NOT USE NEGATIVE NUMBERS WHEN APPLYING A CREDIT"]

{"sheet":"MN","index":26,"n_rows":55,"n_cols":5,"rows_kept":55,"cut":false,"hidden":false,"merged":[[7,1,7,3],[1,0,1,4],[3,0,3,4],[4,0,4,4],[5,0,5,4],[6,1,6,3],[30,5,30,6],[8,1,8,3],[9,1,9,3],[10,1,10,3],[11,1,11,3],[12,1,12,3],[13,1,13,3],[15,2,15,3],[16,4,19,4],[20,4,23,4],[24,4,27,4],[28,4,31,4],[49,1,49,3],[50,1,50,3],[51,1,51,3],[52,1,52,3],[32,4,35,4],[36,4,39,4],[40,4,43,4],[44,4,46,4],[47,0,47,1],[48,0,48,4]]}
["MINNESOTA"]
["AIG PROPRIETARY SCHEDULE RATING PLAN"]
["As of JULY 2023"]
["SCHEDULE RATING MODIFICATIONS - GENERAL LIABILITY"]
["RATING INFORMATION FORM"]
["A schedule rating modification may also be applied to the otherwise chargeable premium in accordance with the following table, subject to a maximum credit of -40% or debit of +40%, to reflect such characteristics of the risk as are not reflected in its experience."]
[]
["NAMED INSURED","EFFECTIVE DATE",null,null,"AIG COMPANY & POLICY NUMBER"]
[]
["INSURED LOCATION(s) BY STATE:"]
[]
[]
["RISK ","MODIFICATIONS",null,null,"REASONS"]
["CHARACTERISTICS"]
[null,"RANGE","CR"," DB"]
[null,"%","% APPLIED"]
["LOCATION: EXPOSURE INSIDE PREMISES","8 +/-"]
[]
[]
[]
["LOCATION:  EXPOSURE OUTSIDE PREMISES","8 +/-"]
[]
[]
[]
["PREMISES:  CONDITION AND CARE OF PREMISES","13 +/-"]
[]
[]
[]
["EQUIPMENT:  TYPE, CONDITION AND CARE OF EQUIPMENT","13 +/-"]
[]
[]
[]
["CLASSIFICATION:  PECULIARITIES OF CLASSIFICATION","13 +/-"]
[]
[]
[]
["EMPLOYEES:  SELECTION, TRAINING, SUPERVISION,","10 +/-"]
["EXPERIENCE"]
[]
[]
["COOPERATION:  MEDICAL FACILITIES","5 +/-"]
[]
[]
[]
["COOPERATION:  SAFETY PROGRAM","5 +/-"]
[]
[]
["TOTAL%  CR OR DB:",null,{"$f":"SUM(C17:C47)","v":0},{"$f":"SUM(D17:D47)","v":0}]
[]
["UNDERWRITER SIGNATURE","DATE"]
[]
["NOTES"]
[]
["SEE CLM EXPERIENCE AND SCHEDULE RATING PLAN RULE FOR COMPLETE DESCRIPTION OF CHARACTERISTICS"]
["DO NOT USE NEGATIVE NUMBERS WHEN APPLYING A CREDIT"]

{"sheet":"MS","index":27,"n_rows":55,"n_cols":5,"rows_kept":55,"cut":false,"hidden":false,"merged":[[7,1,7,3],[1,0,1,4],[3,0,3,4],[4,0,4,4],[5,0,5,4],[6,1,6,3],[30,5,30,6],[8,1,8,3],[9,1,9,3],[10,1,10,3],[11,1,11,3],[12,1,12,3],[13,1,13,3],[15,2,15,3],[16,4,19,4],[20,4,23,4],[24,4,27,4],[28,4,31,4],[49,1,49,3],[50,1,50,3],[51,1,51,3],[52,1,52,3],[32,4,35,4],[36,4,39,4],[40,4,43,4],[44,4,46,4],[47,0,47,1],[48,0,48,4]]}
["MISSISSIPPI"]
["AIG PROPRIETARY SCHEDULE RATING PLAN"]
["As of July 2023"]
["SCHEDULE RATING MODIFICATIONS - GENERAL LIABILITY"]
["RATING INFORMATION FORM"]
["A schedule rating modification may also be applied to the otherwise chargeable premium in accordance with the following table, subject to a maximum credit of -40% or debit of +40%, to reflect such characteristics of the risk as are not reflected in its experience."]
[]
["NAMED INSURED","EFFECTIVE DATE",null,null,"AIG COMPANY & POLICY NUMBER"]
[]
["INSURED LOCATION(s) BY STATE:"]
[]
[]
["RISK ","MODIFICATIONS",null,null,"REASONS"]
["CHARACTERISTICS"]
[null,"RANGE","CR"," DB"]
[null,"%","% APPLIED"]
["LOCATION: EXPOSURE INSIDE PREMISES","8 +/-"]
[]
[]
[]
["LOCATION:  EXPOSURE OUTSIDE PREMISES","8 +/-"]
[]
[]
[]
["PREMISES:  CONDITION AND CARE OF PREMISES","13 +/-"]
[]
[]
[]
["EQUIPMENT:  TYPE, CONDITION AND CARE OF EQUIPMENT","13 +/-"]
[]
[]
[]
["CLASSIFICATION:  PECULIARITIES OF CLASSIFICATION","13 +/-"]
[]
[]
[]
["EMPLOYEES:  SELECTION, TRAINING, SUPERVISION,","10 +/-"]
["EXPERIENCE"]
[]
[]
["COOPERATION:  MEDICAL FACILITIES","5 +/-"]
[]
[]
[]
["COOPERATION:  SAFETY PROGRAM","5 +/-"]
[]
[]
["TOTAL%  CR OR DB:",null,{"$f":"SUM(C17:C47)","v":0},{"$f":"SUM(D17:D47)","v":0}]
[]
["UNDERWRITER SIGNATURE","DATE"]
[]
["NOTES"]
[]
["SEE CLM EXPERIENCE AND SCHEDULE RATING PLAN RULE FOR COMPLETE DESCRIPTION OF CHARACTERISTICS"]
["DO NOT USE NEGATIVE NUMBERS WHEN APPLYING A CREDIT"]

{"sheet":"MO","index":28,"n_rows":58,"n_cols":5,"rows_kept":58,"cut":false,"hidden":false,"merged":[[7,1,7,3],[1,0,1,4],[2,0,2,4],[3,0,3,4],[4,0,4,4],[6,0,6,4],[29,4,32,4],[8,1,8,3],[9,1,9,3],[10,1,10,3],[11,1,11,3],[12,1,12,3],[13,1,13,3],[14,1,14,3],[16,2,16,3],[17,4,20,4],[21,4,24,4],[25,4,28,4],[52,1,52,3],[53,1,53,3],[54,1,54,3],[55,1,55,3],[33,4,36,4],[37,4,40,4],[42,4,45,4],[46,4,48,4],[49,0,49,1],[51,0,51,4]]}
["MISSOURI"]
["ISO COUNTRYWIDE SCHEDULE RATING PLAN"]
["As of July 2023"]
["SCHEDULE RATING MODIFICATIONS - GENERAL LIABILITY"]
["RATING INFORMATION FORM"]
[]
["A schedule rating modification may also be applied to the otherwise chargeable premium in accordance with the following table, subject to a maximum credit of -25% or debit of +25%, to reflect such characteristics of the risk as are not reflected in its experience."]
[]
["NAMED INSURED","EFFECTIVE DATE",null,null,"AIG COMPANY & POLICY NUMBER"]
[]
["INSURED LOCATION(s) BY STATE:"]
[]
[]
["RISK ","MODIFICATIONS",null,null,"REASONS"]
["CHARACTERISTICS"]
[null,"RANGE","CR"," DB"]
[null,"%","% APPLIED"]
["LOCATION: EXPOSURE INSIDE PREMISES"," 5 +/-"]
[]
[]
[]
["LOCATION:  EXPOSURE OUTSIDE PREMISES","5 +/-"]
[]
[]
[]
["PREMISES:  CONDITION AND CARE OF PREMISES","10 +/-"]
[null,null," "]
[]
[]
["EQUIPMENT:  TYPE, CONDITION AND CARE OF EQUIPMENT","10 +/-"]
[]
[]
[]
["CLASSIFICATION:  PECULIARITIES OF CLASSIFICATION","10 +/-"]
[]
[]
[]
["EMPLOYEES:  SELECTION, TRAINING, SUPERVISION,","6 +/-"]
["EXPERIENCE"]
[]
[]
[]
["COOPERATION:  MEDICAL FACILITIES","2 +/-"]
[]
[]
[]
["COOPERATION:  SAFETY PROGRAM","2 +/-"]
[]
[]
["TOTAL%  CR OR DB:",null,{"$f":"SUM(C18:C47)","v":0},{"$f":"SUM(D18:D47)","v":0}]
[]
[]
["UNDERWRITER SIGNATURE","DATE"]
[]
["NOTES"]
[]
["SEE CLM EXPERIENCE AND SCHEDULE RATING PLAN RULE FOR COMPLETE DESCRIPTION OF CHARACTERISTICS"]
["DO NOT USE NEGATIVE NUMBERS WHEN APPLYING A CREDIT"]

{"sheet":"MT","index":29,"n_rows":55,"n_cols":5,"rows_kept":55,"cut":false,"hidden":false,"merged":[[7,1,7,3],[1,0,1,4],[3,0,3,4],[4,0,4,4],[5,0,5,4],[6,1,6,3],[30,5,30,6],[8,1,8,3],[9,1,9,3],[10,1,10,3],[11,1,11,3],[12,1,12,3],[13,1,13,3],[15,2,15,3],[16,4,19,4],[20,4,23,4],[24,4,27,4],[28,4,31,4],[49,1,49,3],[50,1,50,3],[51,1,51,3],[52,1,52,3],[32,4,35,4],[36,4,39,4],[40,4,43,4],[44,4,46,4],[47,0,47,1],[48,0,48,4]]}
["MONTANA"]
["AIG PROPRIETARY SCHEDULE RATING PLAN"]
["As of July 2023"]
["SCHEDULE RATING MODIFICATIONS - GENERAL LIABILITY"]
["RATING INFORMATION FORM"]
["A schedule rating modification may also be applied to the otherwise chargeable premium in accordance with the following table, subject to a maximum credit of -40% or debit of +40%, to reflect such characteristics of the risk as are not reflected in its experience."]
[]
["NAMED INSURED","EFECTIVE DATE",null,null,"AIG COMPANY & POLICY NUMBER"]
[]
["INSURED LOCATION(s) BY STATE:"]
[]
[]
["RISK ","MODIFICATIONS",null,null,"REASONS"]
["CHARACTERISTICS"]
[null,"RANGE","CR"," DB"]
[null,"%","% APPLIED"]
["LOCATION: EXPOSURE INSIDE PREMISES","8 +/-"]
[]
[]
[]
["LOCATION:  EXPOSURE OUTSIDE PREMISES","8 +/-"]
[]
[]
[]
["PREMISES:  CONDITION AND CARE OF PREMISES","13 +/-"]
[]
[]
[]
["EQUIPMENT:  TYPE, CONDITION AND CARE OF EQUIPMENT","13 +/-"]
[]
[]
[]
["CLASSIFICATION:  PECULIARITIES OF CLASSIFICATION","13 +/-"]
[]
[]
[]
["EMPLOYEES:  SELECTION, TRAINING, SUPERVISION,","10 +/-"]
["EXPERIENCE"]
[]
[]
["COOPERATION:  MEDICAL FACILITIES","5 +/-"]
[]
[]
[]
["COOPERATION:  SAFETY PROGRAM","5 +/-"]
[]
[]
["TOTAL%  CR OR DB:",null,{"$f":"SUM(C17:C47)","v":0},{"$f":"SUM(D17:D47)","v":0}]
[]
["UNDERWRITER SIGNATURE","DATE"]
[]
["NOTES"]
[]
["SEE CLM EXPERIENCE AND SCHEDULE RATING PLAN RULE FOR COMPLETE DESCRIPTION OF CHARACTERISTICS"]
["DO NOT USE NEGATIVE NUMBERS WHEN APPLYING A CREDIT"]

{"sheet":"NE","index":30,"n_rows":2,"n_cols":1,"rows_kept":2,"cut":false,"hidden":false,"merged":[[0,0,0,8],[1,0,1,8]]}
["NEBRASKA"]
["SCHEDULE RATING IS NOT ALLOWED IN NEBRASKA "]

{"sheet":"NC GROUP COS","index":31,"n_rows":56,"n_cols":5,"rows_kept":56,"cut":false,"hidden":false,"merged":[[50,1,50,3],[51,1,51,3],[32,4,35,4],[36,4,39,4],[40,4,43,4],[44,4,46,4],[47,0,47,1],[49,1,49,3],[28,4,31,4],[7,0,7,4],[8,1,8,3],[9,1,9,3],[10,1,10,3],[11,1,11,3],[12,1,12,3],[13,1,13,3],[15,2,15,3],[16,4,19,4],[20,4,23,4],[24,4,27,4],[6,0,6,4],[1,0,1,4],[2,0,2,4],[3,0,3,4],[4,0,4,4],[5,0,5,4]]}
["NORTH CAROLINA"]
["NEW HAMPSHIRE GROUP COMPANIES"]
["As of July 2023"]
["SCHEDULE RATING MODIFICATIONS - GENERAL LIABILITY"]
["RATING INFORMATION FORM"]
[]
["A schedule rating modification may also be applied to the otherwise chargeable premium in accordance with the following table, subject to a maximum credit of -50% or debit of +50%, to reflect such characteristics of the risk as are not reflected in its experience."]
[]
["NAMED INSURED","EFFECTIVE DATE",null,null,"AIG COMPANY & POLICY NUMBER"]
[]
["INSURED LOCATION(s) BY STATE:"]
[]
["RISK ","MODIFICATIONS",null,null,"REASONS"]
["CHARACTERISTICS"]
[null,"RANGE","CR"," DB"]
[null,"%","% APPLIED"]
["LOCATION: EXPOSURE INSIDE PREMISES","10 +/-"]
[]
[]
[]
["LOCATION:  EXPOSURE OUTSIDE PREMISES","10 +/-"]
[]
[]
[]
["PREMISES: CONDITION, CARE","20 +/-"]
[]
[]
[]
["EQUIPMENT: TYPE, CARE, CONDITION","20 +/-"]
[]
[]
[]
["CLASSIFICATION PECULIARITIES","20 +/-"]
[]
[]
[]
["EMPLOYEES:  SELECTION, TRAINING, SUPERVISION,","12 +/-"]
["EXPERIENCE"]
[]
[]
["COOPERATION:  MEDICAL FACILITIES","4 +/-"]
[]
[]
[]
["COOPERATION:  SAFETY PROGRAM","4 +/-"]
[]
[]
["TOTAL% CR OR DB:",null,{"$f":"SUM(C17:C45)","v":0},{"$f":"SUM(D17:D45)","v":0}]
[]
["UNDERWRITER SIGNATURE","DATE"]
[]
["NOTES"]
[]
["USE SEPARATE SHEET FOR OTHER COMPANIES"]
["SEE CLM EXPERIENCE AND SCHEDULE RATING PLAN RULE FOR COMPLETE DESCRIPTION OF CHARACTERISTICS"]
["DO NOT USE NEGATIVE NUMBERS WHEN APPLYING A CREDIT"]

{"sheet":"NC OTHER ","index":32,"n_rows":55,"n_cols":5,"rows_kept":55,"cut":false,"hidden":false,"merged":[[12,1,12,3],[1,0,1,4],[2,0,2,4],[3,0,3,4],[4,0,4,4],[5,0,5,4],[6,1,6,3],[7,1,7,3],[8,1,8,3],[9,1,9,3],[10,1,10,3],[11,1,11,3],[47,0,47,1],[13,1,13,3],[15,2,15,3],[16,4,19,4],[20,4,23,4],[24,4,27,4],[28,4,31,4],[30,5,30,6],[32,4,35,4],[36,4,39,4],[40,4,43,4],[44,4,46,4],[48,0,48,4],[49,1,49,3],[50,1,50,3],[51,1,51,3],[52,1,52,3]]}
["NORTH CAROLINA"]
["AIG PROPRIETARY SCHEDULE RATING PLAN"]
["As of July 2023"]
["SCHEDULE RATING MODIFICATIONS - GENERAL LIABILITY"]
["RATING INFORMATION FORM"]
["A schedule rating modification may also be applied to the otherwise chargeable premium in accordance with the following table, subject to a maximum credit of -50% or debit of +50%, to reflect such characteristics of the risk as are not reflected in its experience."]
[]
["NAMED INSURED","EFFECTIVE DATE",null,null,"AIG COMPANY & POLICY NUMBER"]
[]
["INSURED LOCATION(s) BY STATE:"]
[]
[]
["RISK ","MODIFICATIONS",null,null,"REASONS"]
["CHARACTERISTICS"]
[null,"RANGE","CR"," DB"]
[null,"%","% APPLIED"]
["LOCATION: EXPOSURE INSIDE PREMISES","8 +/-"]
[]
[]
[]
["LOCATION:  EXPOSURE OUTSIDE PREMISES","8 +/-"]
[]
[]
[]
["PREMISES:  CONDITION AND CARE OF PREMISES","13 +/-"]
[]
[]
[]
["EQUIPMENT:  TYPE, CONDITION AND CARE OF EQUIPMENT","13 +/-"]
[]
[]
[]
["CLASSIFICATION:  PECULIARITIES OF CLASSIFICATION","13 +/-"]
[]
[]
[]
["EMPLOYEES:  SELECTION, TRAINING, SUPERVISION,","10 +/-"]
["EXPERIENCE"]
[]
[]
["COOPERATION:  MEDICAL FACILITIES","5 +/-"]
[]
[]
[]
["COOPERATION:  SAFETY PROGRAM","5 +/-"]
[]
[]
["TOTAL%  CR OR DB:",null,{"$f":"SUM(C17:C47)","v":0},{"$f":"SUM(D17:D47)","v":0}]
[]
["UNDERWRITER SIGNATURE","DATE"]
[]
["NOTES"]
[]
["SEE CLM EXPERIENCE AND SCHEDULE RATING PLAN RULE FOR COMPLETE DESCRIPTION OF CHARACTERISTICS"]
["DO NOT USE NEGATIVE NUMBERS WHEN APPLYING A CREDIT"]

{"sheet":"NV","index":33,"n_rows":56,"n_cols":5,"rows_kept":56,"cut":false,"hidden":false,"merged":[[47,0,47,1],[15,2,15,3],[1,0,1,4],[3,0,3,4],[4,0,4,4],[6,0,6,4],[12,1,12,3]]}
["NEVADA"]
["NEVADA SCHEDULE RATING PLAN"]
["As of July 2023"]
["  SCHEDULE RATING MODIFICATIONS - GENERAL LIABILITY"]
["RATING INFORMATION FORM"]
[]
["A schedule rating modification may also be applied to the otherwise chargeable premium in accordance with the following table, subject to a maximum credit of -40% or debit of +40%, to reflect such characteristics of the risk as are not reflected in its experience."]
[]
["NAMED INSURED","EFFECTIVE DATE",null,null,"AIG COMPANY & POLICY NUMBER"]
[]
["INSURED LOCATION(s) BY STATE:"]
[]
["RISK ","MODIFICATIONS",null,null,"REASONS"]
["CHARACTERISTICS"]
[null,"RANGE","CR"," DB"]
[null,"%","% APPLIED"]
["LOCATION: EXPOSURE INSIDE PREMISES"," 5 +/-"]
[]
[]
[]
["LOCATION:  EXPOSURE OUTSIDE PREMISES","5 +/-"]
[]
[]
[]
["PREMISES: CONDITION AND CARE","10 +/-"]
[null,null," "]
[]
[]
["EQUIPMENT:  TYPE, CONDITION AND CARE ","10 +/-"]
[]
[]
[]
["PECULIARITIES OF CLASSIFICATION","10 +/-"]
[]
[]
[]
["EMPLOYEES:  SELECTION, TRAINING, SUPERVISION,","6 +/-"]
["EXPERIENCE"]
[]
[]
["COOPERATION:  MEDICAL FACILITIES","2 +/-"]
[]
[]
[]
["COOPERATION:  SAFETY PROGRAM","2 +/-"]
[]
[]
["TOTAL%  CR OR DB:",null,{"$f":"SUM(C17:C45)","v":0},{"$f":"SUM(D17:D45)","v":0}]
[]
[]
["UNDERWRITER SIGNATURE","DATE"]
[]
["NOTES"]
[]
["SEE CLM EXPERIENCE AND SCHEDULE RATING PLAN RULE FOR COMPLETE DESCRIPTION OF CHARACTERISTICS"]
["DO NOT USE NEGATIVE NUMBERS WHEN APPLYING A CREDIT"]

{"sheet":"NH","index":34,"n_rows":56,"n_cols":5,"rows_kept":56,"cut":false,"hidden":false,"merged":[[7,1,7,3],[1,0,1,4],[3,0,3,4],[4,0,4,4],[5,0,5,4],[6,1,6,3],[30,5,30,6],[8,1,8,3],[9,1,9,3],[10,1,10,3],[11,1,11,3],[12,1,12,3],[13,1,13,3],[15,2,15,3],[16,4,19,4],[20,4,23,4],[24,4,27,4],[28,4,31,4],[50,1,50,3],[51,1,51,3],[52,1,52,3],[53,1,53,3],[32,4,35,4],[36,4,39,4],[40,4,43,4],[44,4,46,4],[47,0,47,1],[49,0,49,4]]}
["NEW HAMPSHIRE"]
["AIG PROPRIETARY SCHEDULE RATING PLAN"]
["As of July 2023"]
["SCHEDULE RATING MODIFICATIONS - GENERAL LIABILITY"]
["RATING INFORMATION FORM"]
["A schedule rating modification may also be applied to the otherwise chargeable premium in accordance with the following table, subject to a maximum credit of -40% or debit of +40%, to reflect such characteristics of the risk as are not reflected in its experience."]
[]
["NAMED INSURED","EFFECTIVE DATE",null,null,"AIG COMPANY & POLICY NUMBER"]
[]
["INSURED LOCATION(s) BY STATE:"]
[]
[]
["RISK ","MODIFICATIONS",null,null,"REASONS"]
["CHARACTERISTICS"]
[null,"RANGE","CR"," DB"]
[null,"%","% APPLIED"]
["LOCATION: EXPOSURE INSIDE PREMISES","8 +/-"]
[]
[]
[]
["LOCATION:  EXPOSURE OUTSIDE PREMISES","8 +/-"]
[]
[]
[]
["PREMISES:  CONDITION AND CARE OF PREMISES","13 +/-"]
[]
[]
[]
["EQUIPMENT:  TYPE, CONDITION AND CARE OF EQUIPMENT","13 +/-"]
[]
[]
[]
["CLASSIFICATION:  PECULIARITIES OF CLASSIFICATION","13 +/-"]
[]
[]
[]
["EMPLOYEES:  SELECTION, TRAINING, SUPERVISION,","10 +/-"]
["EXPERIENCE"]
[]
[]
["COOPERATION:  MEDICAL FACILITIES","5 +/-"]
[]
[]
[]
["COOPERATION:  SAFETY PROGRAM","5 +/-"]
[]
[]
["TOTAL%  CR OR DB:",null,{"$f":"SUM(C17:C47)","v":0},{"$f":"SUM(D17:D47)","v":0}]
[]
[]
["UNDERWRITER SIGNATURE","DATE"]
[]
["NOTES"]
[]
["SEE CLM EXPERIENCE AND SCHEDULE RATING PLAN RULE FOR COMPLETE DESCRIPTION OF CHARACTERISTICS"]
["DO NOT USE NEGATIVE NUMBERS WHEN APPLYING A CREDIT"]

{"sheet":"ND","index":35,"n_rows":59,"n_cols":5,"rows_kept":59,"cut":false,"hidden":false,"merged":[[8,1,8,3],[1,0,1,4],[2,0,2,4],[3,0,3,4],[4,0,4,4],[6,0,6,4],[30,4,33,4],[9,1,9,3],[10,1,10,3],[11,1,11,3],[12,1,12,3],[13,1,13,3],[14,1,14,3],[15,1,15,3],[17,2,17,3],[18,4,21,4],[22,4,25,4],[26,4,29,4],[53,1,53,3],[54,1,54,3],[34,4,37,4],[38,4,41,4],[42,4,45,4],[46,4,49,4],[50,0,50,1],[52,0,52,4]]}
["NORTH DAKOTA"]
["ISO COUNTRYWIDE SCHEDULE RATING PLAN"]
["As of July 2023"]
["SCHEDULE RATING MODIFICATIONS - GENERAL LIABILITY"]
["RATING INFORMATION FORM"]
[]
["A schedule rating modification may also be applied to the otherwise chargeable premium in accordance with the following table, subject to a maximum credit of -25% or debit of +25%, to reflect such characteristics of the risk as are not reflected in its experience."]
[]
[]
["NAMED INSURED","EFFECTIVE DATE",null,null,"AIG COMPANY & POLICY NUMBER"]
[]
["INSURED LOCATION(s) BY STATE:"]
[]
[]
["RISK ","MODIFICATIONS",null,null,"REASONS"]
["CHARACTERISTICS"]
[null,"RANGE","CR"," DB"]
[null,"%","% APPLIED"]
["LOCATION: EXPOSURE INSIDE PREMISES"," 5 +/-"]
[]
[]
[]
["LOCATION:  EXPOSURE OUTSIDE PREMISES","5 +/-"]
[]
[]
[]
["PREMISES:  CONDITION AND CARE OF PREMISES","10 +/-"]
[null,null," "]
[]
[]
["EQUIPMENT:  TYPE, CONDITION AND CARE OF EQUIPMENT","10 +/-"]
[]
[]
[]
["CLASSIFICATION:  PECULIARITIES OF CLASSIFICATION","10 +/-"]
[]
[]
[]
["EMPLOYEES:  SELECTION, TRAINING, SUPERVISION,","6 +/-"]
["EXPERIENCE"]
[]
[]
["COOPERATION:  MEDICAL FACILITIES","2 +/-"]
[]
[]
[]
["COOPERATION:  SAFETY PROGRAM","2 +/-"]
[]
[]
[]
["TOTAL%  CR OR DB:",null,{"$f":"SUM(C19:C47)","v":0},{"$f":"SUM(D19:D47)","v":0}]
[]
[]
["UNDERWRITER SIGNATURE","DATE"]
[]
["NOTES"]
[]
["SEE CLM EXPERIENCE AND SCHEDULE RATING PLAN RULE FOR COMPLETE DESCRIPTION OF CHARACTERISTICS"]
["DO NOT USE NEGATIVE NUMBERS WHEN APPLYING A CREDIT"]

{"sheet":"NJ","index":36,"n_rows":56,"n_cols":5,"rows_kept":56,"cut":false,"hidden":false,"merged":[[7,1,7,3],[1,0,1,4],[2,0,2,4],[3,0,3,4],[4,0,4,4],[6,0,6,4],[29,4,32,4],[8,1,8,3],[9,1,9,3],[10,1,10,3],[11,1,11,3],[12,1,12,3],[13,1,13,3],[14,1,14,3],[16,2,16,3],[17,4,20,4],[21,4,24,4],[25,4,28,4],[50,1,50,3],[51,1,51,3],[52,1,52,3],[53,1,53,3],[33,4,36,4],[37,4,40,4],[41,4,44,4],[45,4,47,4],[48,0,48,1],[49,0,49,4]]}
["NEW JERSEY"]
["ISO COUNTRYWIDE SCHEDULE RATING PLAN"]
["As of July 2023"]
["SCHEDULE RATING MODIFICATIONS - GENERAL LIABILITY"]
["RATING INFORMATION FORM"]
[]
["A schedule rating modification may also be applied to the otherwise chargeable premium in accordance with the following table, subject to a maximum credit of -25% or debit of +25%, to reflect such characteristics of the risk as are not reflected in its experience."]
[]
["NAMED INSURED","EFFECTIVE DATE",null,null,"AIG COMPANY & POLICY NUMBER"]
[]
["INSURED LOCATION(s) BY STATE:"]
[]
[]
["RISK ","MODIFICATIONS",null,null,"REASONS"]
["CHARACTERISTICS"]
[null,"RANGE","CR"," DB"]
[null,"%","% APPLIED"]
["LOCATION: EXPOSURE INSIDE PREMISES"," 5 +/-"]
[]
[]
[]
["LOCATION:  EXPOSURE OUTSIDE PREMISES","5 +/-"]
[]
[]
[]
["PREMISES:  CONDITION AND CARE OF PREMISES","10 +/-"]
[null,null," "]
[]
[]
["EQUIPMENT:  TYPE, CONDITION AND CARE OF EQUIPMENT","10 +/-"]
[]
[]
[]
["CLASSIFICATION:  PECULIARITIES OF CLASSIFICATION","10 +/-"]
[]
[]
[]
["EMPLOYEES:  SELECTION, TRAINING, SUPERVISION,","6 +/-"]
["EXPERIENCE"]
[]
[]
["COOPERATION:  MEDICAL FACILITIES","2 +/-"]
[]
[]
[]
["COOPERATION:  SAFETY PROGRAM","2 +/-"]
[]
[]
["TOTAL%  CR OR DB:",null,{"$f":"SUM(C18:C46)","v":0},{"$f":"SUM(D18:D46)","v":0}]
[]
["UNDERWRITER SIGNATURE","DATE"]
[]
["NOTES"]
[]
["SEE CLM EXPERIENCE AND SCHEDULE RATING PLAN RULE FOR COMPLETE DESCRIPTION OF CHARACTERISTICS"]
["DO NOT USE NEGATIVE NUMBERS WHEN APPLYING A CREDIT"]

{"sheet":"NM","index":37,"n_rows":56,"n_cols":5,"rows_kept":56,"cut":false,"hidden":false,"merged":[[7,1,7,3],[1,0,1,4],[2,0,2,4],[3,0,3,4],[4,0,4,4],[6,0,6,4],[29,4,32,4],[8,1,8,3],[9,1,9,3],[10,1,10,3],[11,1,11,3],[12,1,12,3],[13,1,13,3],[14,1,14,3],[16,2,16,3],[17,4,20,4],[21,4,24,4],[25,4,28,4],[50,1,50,3],[51,1,51,3],[52,1,52,3],[53,1,53,3],[33,4,36,4],[37,4,40,4],[41,4,44,4],[45,4,47,4],[48,0,48,1],[49,0,49,4]]}
["NEW MEXICO"]
["ISO COUNTRYWIDE SCHEDULE RATING PLAN"]
["As of July 2023"]
["SCHEDULE RATING MODIFICATIONS - GENERAL LIABILITY"]
["RATING INFORMATION FORM"]
[]
["A schedule rating modification may also be applied to the otherwise chargeable premium in accordance with the following table, subject to a maximum credit of -25% or debit of +25%, to reflect such characteristics of the risk as are not reflected in its experience."]
[]
["NAMED INSURED","EFFECTIVE DATE",null,null,"AIG COMPANY & POLICY NUMBER"]
[]
["INSURED LOCATION(s) BY STATE:"]
[]
[]
["RISK ","MODIFICATIONS",null,null,"REASONS"]
["CHARACTERISTICS"]
[null,"RANGE","CR"," DB"]
[null,"%","% APPLIED"]
["LOCATION: EXPOSURE INSIDE PREMISES"," 5 +/-"]
[]
[]
[]
["LOCATION:  EXPOSURE OUTSIDE PREMISES","5 +/-"]
[]
[]
[]
["PREMISES:  CONDITION AND CARE OF PREMISES","10 +/-"]
[null,null," "]
[]
[]
["EQUIPMENT:  TYPE, CONDITION AND CARE OF EQUIPMENT","10 +/-"]
[]
[]
[]
["CLASSIFICATION:  PECULIARITIES OF CLASSIFICATION","10 +/-"]
[]
[]
[]
["EMPLOYEES:  SELECTION, TRAINING, SUPERVISION,","6 +/-"]
["EXPERIENCE"]
[]
[]
["COOPERATION:  MEDICAL FACILITIES","2 +/-"]
[]
[]
[]
["COOPERATION:  SAFETY PROGRAM","2 +/-"]
[]
[]
["TOTAL%  CR OR DB:",null,{"$f":"SUM(C18:C46)","v":0},{"$f":"SUM(D18:D46)","v":0}]
[]
["UNDERWRITER SIGNATURE","DATE"]
[]
["NOTES"]
[]
["SEE CLM EXPERIENCE AND SCHEDULE RATING PLAN RULE FOR COMPLETE DESCRIPTION OF CHARACTERISTICS"]
["DO NOT USE NEGATIVE NUMBERS WHEN APPLYING A CREDIT"]

{"sheet":"NY","index":38,"n_rows":63,"n_cols":5,"rows_kept":63,"cut":false,"hidden":false,"merged":[[14,2,14,3],[1,0,1,4],[3,0,3,4],[4,0,4,4],[6,1,6,3],[7,1,7,3],[8,1,8,3],[9,1,9,3],[10,1,10,3],[11,1,11,3],[12,1,12,3],[58,1,58,3],[59,1,59,3],[60,1,60,3],[5,0,5,4],[39,4,42,4],[43,4,46,4],[47,4,50,4],[51,4,53,4],[54,0,54,1],[57,1,57,3],[15,4,18,4],[19,4,22,4],[23,4,26,4],[27,4,30,4],[31,4,34,4],[35,4,38,4]]}
["NEW YORK"]
[" NY SCHEDULE RATING PLAN"]
["As of July 2023"]
["SCHEDULE RATING MODIFICATIONS - GENERAL LIABILITY"]
["RATING INFORMATION FORM"]
["A schedule rating modification may also be applied to the otherwise chargeable premium in accordance with the following table, subject to a maximum credit of -15% or debit of +15%, to reflect such characteristics of the risk as are not reflected in its experience."]
[]
["NAMED INSURED","EFFECTIVE DATE",null,null,"AIG COMPANY & POLICY NUMBER"]
[]
["INSURED LOCATION:"]
[]
["RISK ","MODIFICATIONS",null,null,"REASONS"]
["CHARACTERISTICS"]
[null,"RANGE","CR","DB"]
[null,"%","% APPLIED"]
["LOCATION: EXPOSURE INSIDE PREMISES:"," 5 +/-"]
["SUPERIOR/ADEQUATE/INADEQUATE RESPONSE"]
["TO REASONABLE RECOMMENDATIONS *"]
[]
["LOCATION:  EXPOSURE OUTSIDE PREMISES:"," 5 +/-"]
["SUPERIOR/ADEQUATE/INADEQUATE RESPONSE"]
["TO REASONABLE RECOMMENDATIONS *"]
[]
["PREMISES CONDITION:"," 5 +/-"]
["SUPERIOR/ADEQUATE/INADEQUATE RESPONSE"]
["CONDITION OF PREMISES *"]
[]
["PREMISES CARE:"," 5 +/-"]
["DESIGN FEATURES OF THE PREMISES ARE"]
["SUPERIOR/ADEQUATE/INADEQUATE  *"]
[]
["EQUIPMENT:","10 +/-"]
["SUPERIOR/ADEQUATE/INADEQUATE CONDITION OF"]
["FIXTURES, MACHINERY, EQUIPMENT *"]
[]
["CLASSIFICATION PECULIARITIES *","10 +/-"]
[]
[]
[]
["EMPLOYEES: SELECTION *"," 3 +/-"]
[]
[]
[]
["EMPLOYEES:  TRAINING *"," 3 +/-"]
[]
[]
[]
["COOPERATION: MEDICAL FACILITIES *"," 2 +/-"]
[]
[]
[]
["COOPERATION:  SAFETY PROGRAM *"," 2 +/-"]
[]
[]
["TOTAL% CR OR DB:",null,{"$f":"SUM(C16:C54)","v":0},{"$f":"SUM(D16:D54)","v":0}]
[]
[]
["UNDERWRITER SIGNATURE","DATE"]
[]
["NOTES"]
[]
["SEE CLM EXPERIENCE AND SCHEDULE RATING PLAN RULE FOR COMPLETE DESCRIPTION OF CHARACTERISTICS"]
["DO NOT USE NEGATIVE NUMBERS WHEN APPLYING A CREDIT"]

{"sheet":"OH","index":39,"n_rows":57,"n_cols":5,"rows_kept":57,"cut":false,"hidden":false,"merged":[[8,1,8,3],[1,0,1,4],[2,0,2,4],[3,0,3,4],[4,0,4,4],[6,0,6,4],[30,4,33,4],[9,1,9,3],[10,1,10,3],[11,1,11,3],[12,1,12,3],[13,1,13,3],[14,1,14,3],[15,1,15,3],[17,2,17,3],[18,4,21,4],[22,4,25,4],[26,4,29,4],[51,1,51,3],[52,1,52,3],[53,1,53,3],[54,1,54,3],[34,4,37,4],[38,4,41,4],[42,4,45,4],[46,4,48,4],[49,0,49,1]]}
["OHIO"]
["ISO COUNTRYWIDE SCHEDULE RATING PLAN"]
["As of July 2023"]
["SCHEDULE RATING MODIFICATIONS - GENERAL LIABILITY"]
["RATING INFORMATION FORM"]
[]
["A schedule rating modification may also be applied to the otherwise chargeable premium in accordance with the following table, subject to a maximum credit of -25% or debit of +25%, to reflect such characteristics of the risk as are not reflected in its experience."]
[]
[]
["NAMED INSURED","EFFECTIVE DATE",null,null,"AIG COMPANY & POLICY NUMBER"]
[]
["INSURED LOCATION(s) BY STATE:"]
[]
[]
["RISK ","MODIFICATIONS",null,null,"REASONS"]
["CHARACTERISTICS"]
[null,"RANGE","CR"," DB"]
[null,"%","% APPLIED"]
["LOCATION: EXPOSURE INSIDE PREMISES"," 5 +/-"]
[]
[]
[]
["LOCATION:  EXPOSURE OUTSIDE PREMISES","5 +/-"]
[]
[]
[]
["PREMISES:  CONDITION AND CARE OF PREMISES","10 +/-"]
[null,null," "]
[]
[]
["EQUIPMENT:  TYPE, CONDITION AND CARE OF EQUIPMENT","10 +/-"]
[]
[]
[]
["CLASSIFICATION:  PECULIARITIES OF CLASSIFICATION","10 +/-"]
[]
[]
[]
["EMPLOYEES:  SELECTION, TRAINING, SUPERVISION,","6 +/-"]
["EXPERIENCE"]
[]
[]
["COOPERATION:  MEDICAL FACILITIES","2 +/-"]
[]
[]
[]
["COOPERATION:  SAFETY PROGRAM","2 +/-"]
[]
[]
["TOTAL%  CR OR DB:",null,{"$f":"SUM(C19:C47)","v":0},{"$f":"SUM(D19:D47)","v":0}]
[]
["UNDERWRITER SIGNATURE"]
[]
["NOTES"]
[]
["SEE CLM EXPERIENCE AND SCHEDULE RATING PLAN RULE FOR COMPLETE DESCRIPTION OF CHARACTERISTICS"]
["DO NOT USE NEGATIVE NUMBERS WHEN APPLYING A CREDIT"]

{"sheet":"OR","index":40,"n_rows":58,"n_cols":5,"rows_kept":58,"cut":false,"hidden":false,"merged":[[7,1,7,3],[1,0,1,4],[2,0,2,4],[3,0,3,4],[4,0,4,4],[6,0,6,4],[29,4,32,4],[8,1,8,3],[9,1,9,3],[10,1,10,3],[11,1,11,3],[12,1,12,3],[13,1,13,3],[14,1,14,3],[16,2,16,3],[17,4,20,4],[21,4,24,4],[25,4,28,4],[52,1,52,3],[53,1,53,3],[54,1,54,3],[55,1,55,3],[33,4,36,4],[37,4,40,4],[41,4,44,4],[45,4,48,4],[49,0,49,1],[51,0,51,4]]}
["OREGON"]
["ISO COUNTRYWIDE SCHEDULE RATING PLAN"]
["As of July 2023"]
["SCHEDULE RATING MODIFICATIONS - GENERAL LIABILITY"]
["RATING INFORMATION FORM"]
[]
["A schedule rating modification may also be applied to the otherwise chargeable premium in accordance with the following table, subject to a maximum credit of -25% or debit of +25%, to reflect such characteristics of the risk as are not reflected in its experience."]
[]
["NAMED INSURED","EFFECTIVE DATE",null,null,"AIG COMPANY & POLICY NUMBER"]
[]
["INSURED LOCATION(s) BY STATE:"]
[]
[]
["RISK ","MODIFICATIONS",null,null,"REASONS"]
["CHARACTERISTICS"]
[null,"RANGE","CR"," DB"]
[null,"%","% APPLIED"]
["LOCATION: EXPOSURE INSIDE PREMISES"," 5 +/-"]
[]
[]
[]
["LOCATION:  EXPOSURE OUTSIDE PREMISES","5 +/-"]
[]
[]
[]
["PREMISES:  CONDITION AND CARE OF PREMISES","10 +/-"]
[null,null," "]
[]
[]
["EQUIPMENT:  TYPE, CONDITION AND CARE OF EQUIPMENT","10 +/-"]
[]
[]
[]
["CLASSIFICATION:  PECULIARITIES OF CLASSIFICATION","10 +/-"]
[]
[]
[]
["EMPLOYEES:  SELECTION, TRAINING, SUPERVISION,","6 +/-"]
["EXPERIENCE"]
[]
[]
["COOPERATION:  MEDICAL FACILITIES","2 +/-"]
[]
[]
[]
["COOPERATION:  SAFETY PROGRAM","2 +/-"]
[]
[]
[]
["TOTAL%  CR OR DB:",null,{"$f":"SUM(C18:C46)","v":0},{"$f":"SUM(D18:D46)","v":0}]
[]
[]
["UNDERWRITER SIGNATURE","DATE"]
[]
["NOTES"]
[]
["SEE CLM EXPERIENCE AND SCHEDULE RATING PLAN RULE FOR COMPLETE DESCRIPTION OF CHARACTERISTICS"]
["DO NOT USE NEGATIVE NUMBERS WHEN APPLYING A CREDIT"]

{"sheet":"OK","index":41,"n_rows":56,"n_cols":5,"rows_kept":56,"cut":false,"hidden":false,"merged":[[7,1,7,3],[1,0,1,4],[3,0,3,4],[4,0,4,4],[5,0,5,4],[6,1,6,3],[30,5,30,6],[8,1,8,3],[9,1,9,3],[10,1,10,3],[11,1,11,3],[12,1,12,3],[13,1,13,3],[15,2,15,3],[16,4,19,4],[20,4,23,4],[24,4,27,4],[28,4,31,4],[50,1,50,3],[51,1,51,3],[52,1,52,3],[53,1,53,3],[32,4,35,4],[36,4,39,4],[40,4,43,4],[44,4,47,4],[48,0,48,1],[49,0,49,4]]}
["OKLAHOMA"]
["AIG PROPRIETARY SCHEDULE RATING PLAN"]
["As of July 2023"]
["SCHEDULE RATING MODIFICATIONS - GENERAL LIABILITY"]
["RATING INFORMATION FORM"]
["A schedule rating modification may also be applied to the otherwise chargeable premium in accordance with the following table, subject to a maximum credit of -40% or debit of +40%, to reflect such characteristics of the risk as are not reflected in its experience."]
[]
["NAMED INSURED","EFFECTIVVE DATE",null,null,"AIG COMPANY & POLICY NUMBER"]
[]
["INSURED LOCATION(s) BY STATE:"]
[]
[]
["RISK ","MODIFICATIONS",null,null,"REASONS"]
["CHARACTERISTICS"]
[null,"RANGE","CR"," DB"]
[null,"%","% APPLIED"]
["LOCATION: EXPOSURE INSIDE PREMISES","8 +/-"]
[]
[]
[]
["LOCATION:  EXPOSURE OUTSIDE PREMISES","8 +/-"]
[]
[]
[]
["PREMISES:  CONDITION AND CARE OF PREMISES","13 +/-"]
[]
[]
[]
["EQUIPMENT:  TYPE, CONDITION AND CARE OF EQUIPMENT","13 +/-"]
[]
[]
[]
["CLASSIFICATION:  PECULIARITIES OF CLASSIFICATION","13 +/-"]
[]
[]
[]
["EMPLOYEES:  SELECTION, TRAINING, SUPERVISION,","10 +/-"]
["EXPERIENCE"]
[]
[]
["COOPERATION:  MEDICAL FACILITIES","5 +/-"]
[]
[]
[]
["COOPERATION:  SAFETY PROGRAM","5 +/-"]
[]
[]
[]
["TOTAL%  CR OR DB:",null,{"$f":"SUM(C17:C48)","v":0},{"$f":"SUM(D17:D48)","v":0}]
[]
["UNDERWRITER SIGNATURE","DATE"]
[]
["NOTES"]
[]
["SEE CLM EXPERIENCE AND SCHEDULE RATING PLAN RULE FOR COMPLETE DESCRIPTION OF CHARACTERISTICS"]
["DO NOT USE NEGATIVE NUMBERS WHEN APPLYING A CREDIT"]

{"sheet":"PA","index":42,"n_rows":54,"n_cols":5,"rows_kept":54,"cut":false,"hidden":false,"merged":[[7,1,7,3],[1,0,1,4],[3,0,3,4],[4,0,4,4],[5,0,5,4],[6,1,6,3],[30,5,30,6],[8,1,8,3],[9,1,9,3],[10,1,10,3],[11,1,11,3],[12,1,12,3],[13,1,13,3],[15,2,15,3],[16,4,19,4],[20,4,23,4],[24,4,27,4],[28,4,31,4],[48,1,48,3],[49,1,49,3],[50,1,50,3],[51,1,51,3],[32,4,35,4],[36,4,39,4],[40,4,43,4],[44,4,45,4],[46,0,46,1],[47,0,47,4]]}
["PENNSYLVANIA"]
["AIG PROPRIETARY SCHEDULE RATING PLAN"]
["As of July 2023"]
["SCHEDULE RATING MODIFICATIONS - GENERAL LIABILITY"]
["RATING INFORMATION FORM"]
["A schedule rating modification may also be applied to the otherwise chargeable premium in accordance with the following table, subject to a maximum credit of -40% or debit of +40%, to reflect such characteristics of the risk as are not reflected in its experience."]
[]
["NAMED INSURED","EFFECTIVE DATE",null,null,"AIG COMPANY & POLICY NUMBER"]
[]
["INSURED LOCATION(s) BY STATE:"]
[]
[]
["RISK ","MODIFICATIONS",null,null,"REASONS"]
["CHARACTERISTICS"]
[null,"RANGE","CR"," DB"]
[null,"%","% APPLIED"]
["LOCATION: EXPOSURE INSIDE PREMISES","8 +/-"]
[]
[]
[]
["LOCATION:  EXPOSURE OUTSIDE PREMISES","8 +/-"]
[]
[]
[]
["PREMISES:  CONDITION AND CARE OF PREMISES","13 +/-"]
[]
[]
[]
["EQUIPMENT:  TYPE, CONDITION AND CARE OF EQUIPMENT","13 +/-"]
[]
[]
[]
["CLASSIFICATION:  PECULIARITIES OF CLASSIFICATION","13 +/-"]
[]
[]
[]
["EMPLOYEES:  SELECTION, TRAINING, SUPERVISION,","10 +/-"]
["EXPERIENCE"]
[]
[]
["COOPERATION:  MEDICAL FACILITIES","5 +/-"]
[]
[]
[]
["COOPERATION:  SAFETY PROGRAM","5 +/-"]
[]
["TOTAL%  CR OR DB:",null,{"$f":"SUM(C17:C46)","v":0},{"$f":"SUM(D17:D46)","v":0}]
[]
["UNDERWRITER SIGNATURE","DATE"]
[]
["NOTES"]
[]
["SEE CLM EXPERIENCE AND SCHEDULE RATING PLAN RULE FOR COMPLETE DESCRIPTION OF CHARACTERISTICS"]
["DO NOT USE NEGATIVE NUMBERS WHEN APPLYING A CREDIT"]

{"sheet":"RI","index":43,"n_rows":56,"n_cols":5,"rows_kept":56,"cut":false,"hidden":false,"merged":[[7,1,7,3],[1,0,1,4],[3,0,3,4],[4,0,4,4],[5,0,5,4],[6,1,6,3],[30,5,30,6],[8,1,8,3],[9,1,9,3],[10,1,10,3],[11,1,11,3],[12,1,12,3],[13,1,13,3],[15,2,15,3],[16,4,19,4],[20,4,23,4],[24,4,27,4],[28,4,31,4],[50,1,50,3],[51,1,51,3],[52,1,52,3],[53,1,53,3],[32,4,35,4],[36,4,39,4],[40,4,43,4],[44,4,47,4],[48,0,48,1],[49,0,49,4]]}
["RHODE ISLAND"]
["AIG PROPRIETARY SCHEDULE RATING PLAN"]
["As of July 2023"]
["SCHEDULE RATING MODIFICATIONS - GENERAL LIABILITY"]
["RATING INFORMATION FORM"]
["A schedule rating modification may also be applied to the otherwise chargeable premium in accordance with the following table, subject to a maximum credit of -40% or debit of +40%, to reflect such characteristics of the risk as are not reflected in its experience."]
[]
["NAMED INSURED","EFFECTIVE DATE",null,null,"AIG COMPANY & POLICY NUMBER"]
[]
["INSURED LOCATION(s) BY STATE:"]
[]
[]
["RISK ","MODIFICATIONS",null,null,"REASONS"]
["CHARACTERISTICS"]
[null,"RANGE","CR"," DB"]
[null,"%","% APPLIED"]
["LOCATION: EXPOSURE INSIDE PREMISES","8 +/-"]
[]
[]
[]
["LOCATION:  EXPOSURE OUTSIDE PREMISES","8 +/-"]
[]
[]
[]
["PREMISES:  CONDITION AND CARE OF PREMISES","13 +/-"]
[]
[]
[]
["EQUIPMENT:  TYPE, CONDITION AND CARE OF EQUIPMENT","13 +/-"]
[]
[]
[]
["CLASSIFICATION:  PECULIARITIES OF CLASSIFICATION","13 +/-"]
[]
[]
[]
["EMPLOYEES:  SELECTION, TRAINING, SUPERVISION,","10 +/-"]
["EXPERIENCE"]
[]
[]
["COOPERATION:  MEDICAL FACILITIES","5 +/-"]
[]
[]
[]
["COOPERATION:  SAFETY PROGRAM","5 +/-"]
[]
[]
[]
["TOTAL%  CR OR DB:",null,{"$f":"SUM(C17:C48)","v":0},{"$f":"SUM(D17:D48)","v":0}]
[]
["UNDERWRITER SIGNATURE","DATE"]
[]
["NOTES"]
[]
["SEE CLM EXPERIENCE AND SCHEDULE RATING PLAN RULE FOR COMPLETE DESCRIPTION OF CHARACTERISTICS"]
["DO NOT USE NEGATIVE NUMBERS WHEN APPLYING A CREDIT"]

{"sheet":"SC","index":44,"n_rows":56,"n_cols":5,"rows_kept":56,"cut":false,"hidden":false,"merged":[[7,1,7,3],[1,0,1,4],[3,0,3,4],[4,0,4,4],[5,0,5,4],[6,1,6,3],[30,5,30,6],[8,1,8,3],[9,1,9,3],[10,1,10,3],[11,1,11,3],[12,1,12,3],[13,1,13,3],[15,2,15,3],[16,4,19,4],[20,4,23,4],[24,4,27,4],[28,4,31,4],[50,1,50,3],[51,1,51,3],[52,1,52,3],[53,1,53,3],[32,4,35,4],[36,4,39,4],[40,4,43,4],[44,4,46,4],[47,0,47,1],[49,0,49,4]]}
["SOUTH CAROLINA"]
["AIG PROPRIETARY SCHEDULE RATING PLAN"]
["As of July 2023"]
["SCHEDULE RATING MODIFICATIONS - GENERAL LIABILITY"]
["RATING INFORMATION FORM"]
["A schedule rating modification may also be applied to the otherwise chargeable premium in accordance with the following table, subject to a maximum credit of -40% or debit of +25%, to reflect such characteristics of the risk as are not reflected in its experience."]
[]
["NAMED INSURED","EFFECTIVE DATE",null,null,"AIG COMPANY & POLICY NUMBER"]
[]
["INSURED LOCATION(s) BY STATE:"]
[]
[]
["RISK ","MODIFICATIONS",null,null,"REASONS"]
["CHARACTERISTICS"]
[null,"RANGE","CR"," DB"]
[null,"%","% APPLIED"]
["LOCATION: EXPOSURE INSIDE PREMISES","8 +/-"]
[]
[]
[]
["LOCATION:  EXPOSURE OUTSIDE PREMISES","8 +/-"]
[]
[]
[]
["PREMISES:  CONDITION AND CARE OF PREMISES","13 +/-"]
[]
[]
[]
["EQUIPMENT:  TYPE, CONDITION AND CARE OF EQUIPMENT","13 +/-"]
[]
[]
[]
["CLASSIFICATION:  PECULIARITIES OF CLASSIFICATION","13 +/-"]
[]
[]
[]
["EMPLOYEES:  SELECTION, TRAINING, SUPERVISION,","10 +/-"]
["EXPERIENCE"]
[]
[]
["COOPERATION:  MEDICAL FACILITIES","5 +/-"]
[]
[]
[]
["COOPERATION:  SAFETY PROGRAM","5 +/-"]
[]
[]
["TOTAL%  CR OR DB:",null,{"$f":"SUM(C17:C47)","v":0},{"$f":"SUM(D17:D47)","v":0}]
[]
[]
["UNDERWRITER SIGNATURE","DATE"]
[]
["NOTES"]
[]
["SEE CLM EXPERIENCE AND SCHEDULE RATING PLAN RULE FOR COMPLETE DESCRIPTION OF CHARACTERISTICS"]
["DO NOT USE NEGATIVE NUMBERS WHEN APPLYING A CREDIT"]

{"sheet":"SD","index":45,"n_rows":58,"n_cols":5,"rows_kept":58,"cut":false,"hidden":false,"merged":[[8,1,8,3],[1,0,1,4],[2,0,2,4],[3,0,3,4],[4,0,4,4],[6,0,6,4],[30,4,33,4],[9,1,9,3],[10,1,10,3],[11,1,11,3],[12,1,12,3],[13,1,13,3],[14,1,14,3],[15,1,15,3],[17,2,17,3],[18,4,21,4],[22,4,25,4],[26,4,29,4],[52,1,52,3],[53,1,53,3],[54,1,54,3],[55,1,55,3],[34,4,37,4],[38,4,41,4],[42,4,45,4],[46,4,49,4],[50,0,50,1],[51,0,51,4]]}
["SOUTH DAKOTA"]
["ISO COUNTRYWIDE SCHEDULE RATING PLAN"]
["As of January 1, 2021"]
["SCHEDULE RATING MODIFICATIONS - GENERAL LIABILITY"]
["RATING INFORMATION FORM"]
[]
["A schedule rating modification may also be applied to the otherwise chargeable premium in accordance with the following table, subject to a maximum credit of -25% or debit of +25%, to reflect such characteristics of the risk as are not reflected in its experience."]
[]
[]
["NAMED INSURED",null,null,null,"AIG COMPANY & POLICY NUMBER"]
[]
["INSURED LOCATION(s) BY STATE:"]
[]
[]
["RISK ","MODIFICATIONS",null,null,"REASONS"]
["CHARACTERISTICS"]
[null,"RANGE","CR"," DB"]
[null,"%","% APPLIED"]
["LOCATION: EXPOSURE INSIDE PREMISES"," 5 +/-"]
[]
[]
[]
["LOCATION:  EXPOSURE OUTSIDE PREMISES","5 +/-"]
[]
[]
[]
["PREMISES:  CONDITION AND CARE OF PREMISES","10 +/-"]
[null,null," "]
[]
[]
["EQUIPMENT:  TYPE, CONDITION AND CARE OF EQUIPMENT","10 +/-"]
[]
[]
[]
["CLASSIFICATION:  PECULIARITIES OF CLASSIFICATION","10 +/-"]
[]
[]
[]
["EMPLOYEES:  SELECTION, TRAINING, SUPERVISION,","6 +/-"]
["EXPERIENCE"]
[]
[]
["COOPERATION:  MEDICAL FACILITIES","2 +/-"]
[]
[]
[]
["COOPERATION:  SAFETY PROGRAM","2 +/-"]
[]
[]
[]
["TOTAL%  CR OR DB:",null,{"$f":"SUM(C19:C47)","v":0},{"$f":"SUM(D19:D47)","v":0}]
[]
["UNDERWRITER SIGNATURE","DATE"]
[]
["NOTES"]
[]
["SEE CLM EXPERIENCE AND SCHEDULE RATING PLAN RULE FOR COMPLETE DESCRIPTION OF CHARACTERISTICS"]
["DO NOT USE NEGATIVE NUMBERS WHEN APPLYING A CREDIT"]

{"sheet":"TN","index":46,"n_rows":55,"n_cols":5,"rows_kept":55,"cut":false,"hidden":false,"merged":[[12,1,12,3],[1,0,1,4],[2,0,2,4],[3,0,3,4],[4,0,4,4],[5,0,5,4],[6,1,6,3],[7,1,7,3],[8,1,8,3],[9,1,9,3],[10,1,10,3],[11,1,11,3],[47,0,47,1],[13,1,13,3],[15,2,15,3],[16,4,19,4],[20,4,23,4],[24,4,27,4],[28,4,31,4],[30,5,30,6],[32,4,35,4],[36,4,39,4],[40,4,43,4],[44,4,46,4],[48,0,48,4],[49,1,49,3],[50,1,50,3],[51,1,51,3],[52,1,52,3]]}
["TENNESSEE"]
["AIG PROPRIETARY SCHEDULE RATING PLAN"]
["As of July 2023"]
["SCHEDULE RATING MODIFICATIONS - GENERAL LIABILITY"]
["RATING INFORMATION FORM"]
["A schedule rating modification may also be applied to the otherwise chargeable premium in accordance with the following table, subject to a maximum credit of -50% or debit of +50%, to reflect such characteristics of the risk as are not reflected in its experience."]
[]
["NAMED INSURED","EFFECTIVE DATE",null,null,"AIG COMPANY & POLICY NUMBER"]
[]
["INSURED LOCATION(s) BY STATE:"]
[]
[]
["RISK ","MODIFICATIONS",null,null,"REASONS"]
["CHARACTERISTICS"]
[null,"RANGE","CR"," DB"]
[null,"%","% APPLIED"]
["LOCATION: EXPOSURE INSIDE PREMISES","8 +/-"]
[]
[]
[]
["LOCATION:  EXPOSURE OUTSIDE PREMISES","8 +/-"]
[]
[]
[]
["PREMISES:  CONDITION AND CARE OF PREMISES","13 +/-"]
[]
[]
[]
["EQUIPMENT:  TYPE, CONDITION AND CARE OF EQUIPMENT","13 +/-"]
[]
[]
[]
["CLASSIFICATION:  PECULIARITIES OF CLASSIFICATION","13 +/-"]
[]
[]
[]
["EMPLOYEES:  SELECTION, TRAINING, SUPERVISION,","10 +/-"]
["EXPERIENCE"]
[]
[]
["COOPERATION:  MEDICAL FACILITIES","5 +/-"]
[]
[]
[]
["COOPERATION:  SAFETY PROGRAM","5 +/-"]
[]
[]
["TOTAL%  CR OR DB:",null,{"$f":"SUM(C17:C47)","v":0},{"$f":"SUM(D17:D47)","v":0}]
[]
["UNDERWRITER SIGNATURE","DATE"]
[]
["NOTES"]
[]
["SEE CLM EXPERIENCE AND SCHEDULE RATING PLAN RULE FOR COMPLETE DESCRIPTION OF CHARACTERISTICS"]
["DO NOT USE NEGATIVE NUMBERS WHEN APPLYING A CREDIT"]

{"sheet":"TX","index":47,"n_rows":56,"n_cols":5,"rows_kept":56,"cut":false,"hidden":false,"merged":[[11,1,11,3],[8,1,8,3],[10,1,10,3],[1,0,1,4],[2,0,2,4],[3,0,3,4],[4,0,4,4],[5,0,5,4],[6,0,6,4],[7,1,7,3],[9,1,9,3],[53,1,53,3],[44,4,45,4],[50,1,50,3],[47,0,47,1],[51,1,51,3],[49,0,49,4],[52,1,52,3],[28,4,31,4],[32,4,35,4],[15,2,15,3],[40,4,43,4],[36,4,39,4],[12,1,12,3],[13,1,13,3],[16,4,19,4],[20,4,23,4],[24,4,27,4]]}
["TEXAS "]
["TEXAS SCHEDULE RATING PLAN"]
["As of July 2023                                               "]
["SCHEDULE RATING MODIFICATIONS - GENERAL LIABILITY"]
["RATING INFORMATION FORM"]
[]
["A schedule rating modification may also be applied to the otherwise chargeable premium in accordance with the following table, subject to a maximum credit of -50% or debit of +50%, to reflect such characteristics of the risk as are not reflected in its experience."]
[]
["NAMED INSURED","EFFECTIVE DATE",null,null,"AIG COMPANY & POLICY NUMBER"]
[]
["INSURED LOCATION(s) BY STATE:"]
[]
["RISK ","MODIFICATIONS",null,null,"REASONS"]
["CHARACTERISTICS"]
[null,"RANGE","CR"," DB"]
[null,"%","% APPLIED"]
["LOCATION: EXPOSURE INSIDE PREMISES"," 10 +/-"]
[]
[]
[]
["LOCATION:  EXPOSURE OUTSIDE PREMISES","10 +/-"]
[]
[]
[]
["PREMISES:  CONDITION AND CARE OF PREMISES","20 +/-"]
[null,null," "]
[]
[]
["EQUIPMENT:  TYPE, CONDITION AND CARE OF EQUIPMENT","20 +/-"]
[]
[]
[]
["CLASSIFICATION:  PECULIARITIES OF CLASSIFICATION","20 +/-"]
[]
[]
[]
["EMPLOYEES:  SELECTION, TRAINING, SUPERVISION,","12 +/-"]
["EXPERIENCE"]
[]
[]
["COOPERATION:  MEDICAL FACILITIES","4 +/-"]
[]
[]
[]
["COOPERATION:  SAFETY PROGRAM","4 +/-"]
[]
[]
["TOTAL%  CR OR DB:",null,{"$f":"SUM(C17:C47)","v":0},{"$f":"SUM(D17:D47)","v":0}]
[]
[]
["UNDERWRITER SIGNATURE","DATE"]
[]
["NOTES"]
[]
["SEE CLM EXPERIENCE AND SCHEDULE RATING PLAN RULE FOR COMPLETE DESCRIPTION OF CHARACTERISTICS"]
["DO NOT USE NEGATIVE NUMBERS WHEN APPLYING A CREDIT"]

{"sheet":"UT","index":48,"n_rows":56,"n_cols":5,"rows_kept":56,"cut":false,"hidden":false,"merged":[[6,1,6,3],[1,0,1,4],[2,0,2,4],[3,0,3,4],[4,0,4,4],[5,0,5,4],[28,4,31,4],[7,1,7,3],[8,1,8,3],[9,1,9,3],[10,1,10,3],[11,1,11,3],[12,1,12,3],[13,1,13,3],[15,2,15,3],[16,4,19,4],[20,4,23,4],[24,4,27,4],[50,1,50,3],[51,1,51,3],[32,4,35,4],[36,4,39,4],[40,4,43,4],[44,4,47,4],[48,0,48,1],[49,0,49,4]]}
["UTAH"]
["ISO COUNTRYWIDE SCHEDULE RATING PLAN"]
["As of January 1, 2021"]
["SCHEDULE RATING MODIFICATIONS - GENERAL LIABILITY"]
["RATING INFORMATION FORM"]
["A schedule rating modification may also be applied to the otherwise chargeable premium in accordance with the following table, subject to a maximum credit of -25% or debit of +25%, to reflect such characteristics of the risk as are not reflected in its experience."]
[]
["NAMED INSURED","   EFFECTIVE DATE",null,null,"AIG COMPANY & POLICY NUMBER"]
[]
["INSURED LOCATION(s) BY STATE:"]
[]
[]
["RISK ","MODIFICATIONS",null,null,"REASONS"]
["CHARACTERISTICS"]
[null,"RANGE","CR"," DB"]
[null,"%","% APPLIED"]
["LOCATION: EXPOSURE INSIDE PREMISES"," 5 +/-"]
[]
[]
[]
["LOCATION:  EXPOSURE OUTSIDE PREMISES","5 +/-"]
[]
[]
[]
["PREMISES:  CONDITION AND CARE OF PREMISES","10 +/-"]
[null,null," "]
[]
[]
["EQUIPMENT:  TYPE, CONDITION AND CARE OF EQUIPMENT","10 +/-"]
[]
[]
[]
["CLASSIFICATION:  PECULIARITIES OF CLASSIFICATION","10 +/-"]
[]
[]
[]
["EMPLOYEES:  SELECTION, TRAINING, SUPERVISION,","6 +/-"]
["EXPERIENCE"]
[]
[]
["COOPERATION:  MEDICAL FACILITIES","2 +/-"]
[]
[]
[]
["COOPERATION:  SAFETY PROGRAM","2 +/-"]
[]
[]
[]
["TOTAL%  CR OR DB:",null,{"$f":"SUM(C17:C45)","v":0},{"$f":"SUM(D17:D45)","v":0}]
[]
["UNDERWRITER SIGNATURE","DATE"]
[]
["NOTES"]
[]
["SEE CLM EXPERIENCE AND SCHEDULE RATING PLAN RULE FOR COMPLETE DESCRIPTION OF CHARACTERISTICS"]
["DO NOT USE NEGATIVE NUMBERS WHEN APPLYING A CREDIT"]

{"sheet":"VT","index":49,"n_rows":55,"n_cols":5,"rows_kept":55,"cut":false,"hidden":false,"merged":[[12,1,12,3],[1,0,1,4],[2,0,2,4],[3,0,3,4],[4,0,4,4],[5,0,5,4],[6,1,6,3],[7,1,7,3],[8,1,8,3],[9,1,9,3],[10,1,10,3],[11,1,11,3],[47,0,47,1],[13,1,13,3],[15,2,15,3],[16,4,19,4],[20,4,23,4],[24,4,27,4],[28,4,31,4],[30,5,30,6],[32,4,35,4],[36,4,39,4],[40,4,43,4],[44,4,46,4],[48,0,48,4],[49,1,49,3],[50,1,50,3],[51,1,51,3],[52,1,52,3]]}
["VERMONT"]
["AIG PROPRIETARY SCHEDULE RATING PLAN"]
["As of July 2023"]
["SCHEDULE RATING MODIFICATIONS - GENERAL LIABILITY"]
["RATING INFORMATION FORM"]
["A schedule rating modification may also be applied to the otherwise chargeable premium in accordance with the following table, subject to a maximum credit of -50% or debit of +50%, to reflect such characteristics of the risk as are not reflected in its experience."]
[]
["NAMED INSURED","EFFECTIVE DATE",null,null,"AIG COMPANY & POLICY NUMBER"]
[]
["INSURED LOCATION(s) BY STATE:"]
[]
[]
["RISK ","MODIFICATIONS",null,null,"REASONS"]
["CHARACTERISTICS"]
[null,"RANGE","CR"," DB"]
[null,"%","% APPLIED"]
["LOCATION: EXPOSURE INSIDE PREMISES","8 +/-"]
[]
[]
[]
["LOCATION:  EXPOSURE OUTSIDE PREMISES","8 +/-"]
[]
[]
[]
["PREMISES:  CONDITION AND CARE OF PREMISES","13 +/-"]
[]
[]
[]
["EQUIPMENT:  TYPE, CONDITION AND CARE OF EQUIPMENT","13 +/-"]
[]
[]
[]
["CLASSIFICATION:  PECULIARITIES OF CLASSIFICATION","13 +/-"]
[]
[]
[]
["EMPLOYEES:  SELECTION, TRAINING, SUPERVISION,","10 +/-"]
["EXPERIENCE"]
[]
[]
["COOPERATION:  MEDICAL FACILITIES","5 +/-"]
[]
[]
[]
["COOPERATION:  SAFETY PROGRAM","5 +/-"]
[]
[]
["TOTAL%  CR OR DB:",null,{"$f":"SUM(C17:C47)","v":0},{"$f":"SUM(D17:D47)","v":0}]
[]
["UNDERWRITER SIGNATURE","DATE"]
[]
["NOTES"]
[]
["SEE CLM EXPERIENCE AND SCHEDULE RATING PLAN RULE FOR COMPLETE DESCRIPTION OF CHARACTERISTICS"]
["DO NOT USE NEGATIVE NUMBERS WHEN APPLYING A CREDIT"]

{"sheet":"VA","index":50,"n_rows":55,"n_cols":5,"rows_kept":55,"cut":false,"hidden":false,"merged":[[12,1,12,3],[1,0,1,4],[2,0,2,4],[3,0,3,4],[4,0,4,4],[5,0,5,4],[6,1,6,3],[7,1,7,3],[8,1,8,3],[9,1,9,3],[10,1,10,3],[11,1,11,3],[47,0,47,1],[13,1,13,3],[15,2,15,3],[16,4,19,4],[20,4,23,4],[24,4,27,4],[28,4,31,4],[30,5,30,6],[32,4,35,4],[36,4,39,4],[40,4,43,4],[44,4,46,4],[48,0,48,4],[49,1,49,3],[50,1,50,3],[51,1,51,3],[52,1,52,3]]}
["VIRGINIA"]
["AIG PROPRIETARY SCHEDULE RATING PLAN"]
["As of July 2023"]
["SCHEDULE RATING MODIFICATIONS - GENERAL LIABILITY"]
["RATING INFORMATION FORM"]
["A schedule rating modification may also be applied to the otherwise chargeable premium in accordance with the following table, subject to a maximum credit of -50% or debit of +50%, to reflect such characteristics of the risk as are not reflected in its experience."]
[]
["NAMED INSURED","EFFECTIVE DATE",null,null,"AIG COMPANY & POLICY NUMBER"]
[]
["INSURED LOCATION(s) BY STATE:"]
[]
[]
["RISK ","MODIFICATIONS",null,null,"REASONS"]
["CHARACTERISTICS"]
[null,"RANGE","CR"," DB"]
[null,"%","% APPLIED"]
["LOCATION: EXPOSURE INSIDE PREMISES","8 +/-"]
[]
[]
[]
["LOCATION:  EXPOSURE OUTSIDE PREMISES","8 +/-"]
[]
[]
[]
["PREMISES:  CONDITION AND CARE OF PREMISES","13 +/-"]
[]
[]
[]
["EQUIPMENT:  TYPE, CONDITION AND CARE OF EQUIPMENT","13 +/-"]
[]
[]
[]
["CLASSIFICATION:  PECULIARITIES OF CLASSIFICATION","13 +/-"]
[]
[]
[]
["EMPLOYEES:  SELECTION, TRAINING, SUPERVISION,","10 +/-"]
["EXPERIENCE"]
[]
[]
["COOPERATION:  MEDICAL FACILITIES","5 +/-"]
[]
[]
[]
["COOPERATION:  SAFETY PROGRAM","5 +/-"]
[]
[]
["TOTAL%  CR OR DB:",null,{"$f":"SUM(C17:C47)","v":0},{"$f":"SUM(D17:D47)","v":0}]
[]
["UNDERWRITER SIGNATURE","DATE"]
[]
["NOTES"]
[]
["SEE CLM EXPERIENCE AND SCHEDULE RATING PLAN RULE FOR COMPLETE DESCRIPTION OF CHARACTERISTICS"]
["DO NOT USE NEGATIVE NUMBERS WHEN APPLYING A CREDIT"]

{"sheet":"WV","index":51,"n_rows":55,"n_cols":5,"rows_kept":55,"cut":false,"hidden":false,"merged":[[7,1,7,3],[1,0,1,4],[3,0,3,4],[4,0,4,4],[5,0,5,4],[6,1,6,3],[30,5,30,6],[8,1,8,3],[9,1,9,3],[10,1,10,3],[11,1,11,3],[12,1,12,3],[13,1,13,3],[15,2,15,3],[16,4,19,4],[20,4,23,4],[24,4,27,4],[28,4,31,4],[49,1,49,3],[50,1,50,3],[51,1,51,3],[52,1,52,3],[32,4,35,4],[36,4,39,4],[40,4,43,4],[44,4,46,4],[47,0,47,1],[48,0,48,4]]}
["WEST VIRGINIA"]
["AIG PROPRIETARY SCHEDULE RATING PLAN"]
["As of Jult 2023"]
["SCHEDULE RATING MODIFICATIONS - GENERAL LIABILITY"]
["RATING INFORMATION FORM"]
["A schedule rating modification may also be applied to the otherwise chargeable premium in accordance with the following table, subject to a maximum credit of -40% or debit of +40%, to reflect such characteristics of the risk as are not reflected in its experience."]
[]
["NAMED INSURED","EFFECTIVE DATE",null,null,"AIG COMPANY & POLICY NUMBER"]
[]
["INSURED LOCATION(s) BY STATE:"]
[]
[]
["RISK ","MODIFICATIONS",null,null,"REASONS"]
["CHARACTERISTICS"]
[null,"RANGE","CR"," DB"]
[null,"%","% APPLIED"]
["LOCATION: EXPOSURE INSIDE PREMISES","8 +/-"]
[]
[]
[]
["LOCATION:  EXPOSURE OUTSIDE PREMISES","8 +/-"]
[]
[]
[]
["PREMISES:  CONDITION AND CARE OF PREMISES","13 +/-"]
[]
[]
[]
["EQUIPMENT:  TYPE, CONDITION AND CARE OF EQUIPMENT","13 +/-"]
[]
[]
[]
["CLASSIFICATION:  PECULIARITIES OF CLASSIFICATION","13 +/-"]
[]
[]
[]
["EMPLOYEES:  SELECTION, TRAINING, SUPERVISION,","10 +/-"]
["EXPERIENCE"]
[]
[]
["COOPERATION:  MEDICAL FACILITIES","5 +/-"]
[]
[]
[]
["COOPERATION:  SAFETY PROGRAM","5 +/-"]
[]
[]
["TOTAL%  CR OR DB:",null,{"$f":"SUM(C17:C47)","v":0},{"$f":"SUM(D17:D47)","v":0}]
[]
["UNDERWRITER SIGNATURE","DATE"]
[]
["NOTES"]
[]
["SEE CLM EXPERIENCE AND SCHEDULE RATING PLAN RULE FOR COMPLETE DESCRIPTION OF CHARACTERISTICS"]
["DO NOT USE NEGATIVE NUMBERS WHEN APPLYING A CREDIT"]

{"sheet":"WA","index":52,"n_rows":57,"n_cols":5,"rows_kept":57,"cut":false,"hidden":false,"merged":[[7,1,7,3],[1,0,1,4],[2,0,2,4],[3,0,3,4],[4,0,4,4],[6,0,6,4],[29,4,32,4],[8,1,8,3],[9,1,9,3],[10,1,10,3],[11,1,11,3],[12,1,12,3],[13,1,13,3],[14,1,14,3],[16,2,16,3],[17,4,20,4],[21,4,24,4],[25,4,28,4],[51,1,51,3],[52,1,52,3],[53,1,53,3],[54,1,54,3],[33,4,36,4],[37,4,40,4],[41,4,44,4],[45,4,48,4],[49,0,49,1],[50,0,50,4]]}
["WASHINGTON"]
["ISO COUNTRYWIDE SCHEDULE RATING PLAN"]
["As of January 1, 2021"]
["SCHEDULE RATING MODIFICATIONS - GENERAL LIABILITY"]
["RATING INFORMATION FORM"]
[]
["A schedule rating modification may also be applied to the otherwise chargeable premium in accordance with the following table, subject to a maximum credit of -25% or debit of +25%, to reflect such characteristics of the risk as are not reflected in its experience."]
[]
["NAMED INSURED","EFFECTIVE DATE",null,null,"AIG COMPANY & POLICY NUMBER"]
[]
["INSURED LOCATION(s) BY STATE:"]
[]
[]
["RISK ","MODIFICATIONS",null,null,"REASONS"]
["CHARACTERISTICS"]
[null,"RANGE","CR"," DB"]
[null,"%","% APPLIED"]
["LOCATION: EXPOSURE INSIDE PREMISES"," 5 +/-"]
[]
[]
[]
["LOCATION:  EXPOSURE OUTSIDE PREMISES","5 +/-"]
[]
[]
[]
["PREMISES:  CONDITION AND CARE OF PREMISES","10 +/-"]
[null,null," "]
[]
[]
["EQUIPMENT:  TYPE, CONDITION AND CARE OF EQUIPMENT","10 +/-"]
[]
[]
[]
["CLASSIFICATION:  PECULIARITIES OF CLASSIFICATION","10 +/-"]
[]
[]
[]
["EMPLOYEES:  SELECTION, TRAINING, SUPERVISION,","6 +/-"]
["EXPERIENCE"]
[]
[]
["COOPERATION:  MEDICAL FACILITIES","2 +/-"]
[]
[]
[]
["COOPERATION:  SAFETY PROGRAM","2 +/-"]
[]
[]
[]
["TOTAL%  CR OR DB:",null,{"$f":"SUM(C18:C46)","v":0},{"$f":"SUM(D18:D46)","v":0}]
[]
["UNDERWRITER SIGNATURE","DATE"]
[]
["NOTES"]
[]
["SEE CLM EXPERIENCE AND SCHEDULE RATING PLAN RULE FOR COMPLETE DESCRIPTION OF CHARACTERISTICS"]
["DO NOT USE NEGATIVE NUMBERS WHEN APPLYING A CREDIT"]

{"sheet":"WI","index":53,"n_rows":56,"n_cols":5,"rows_kept":56,"cut":false,"hidden":false,"merged":[[12,1,12,3],[1,0,1,4],[2,0,2,4],[3,0,3,4],[4,0,4,4],[5,0,5,4],[6,1,6,3],[7,1,7,3],[8,1,8,3],[9,1,9,3],[10,1,10,3],[11,1,11,3],[48,0,48,1],[13,1,13,3],[15,2,15,3],[16,4,19,4],[20,4,23,4],[24,4,27,4],[28,4,31,4],[30,5,30,6],[32,4,35,4],[36,4,39,4],[40,4,43,4],[44,4,47,4],[49,0,49,4],[50,1,50,3],[51,1,51,3],[52,1,52,3],[53,1,53,3]]}
["WISCONSIN"]
["AIG PROPRIETARY SCHEDULE RATING PLAN"]
["As of July 2023"]
["SCHEDULE RATING MODIFICATIONS - GENERAL LIABILITY"]
["RATING INFORMATION FORM"]
["A schedule rating modification may also be applied to the otherwise chargeable premium in accordance with the following table, subject to a maximum credit of -50% or debit of +50%, to reflect such characteristics of the risk as are not reflected in its experience."]
[]
["NAMED INSURED","EFFECTIVE DATE",null,null,"AIG COMPANY & POLICY NUMBER"]
[]
["INSURED LOCATION(s) BY STATE:"]
[]
[]
["RISK ","MODIFICATIONS",null,null,"REASONS"]
["CHARACTERISTICS"]
[null,"RANGE","CR"," DB"]
[null,"%","% APPLIED"]
["LOCATION: EXPOSURE INSIDE PREMISES","8 +/-"]
[]
[]
[]
["LOCATION:  EXPOSURE OUTSIDE PREMISES","8 +/-"]
[]
[]
[]
["PREMISES:  CONDITION AND CARE OF PREMISES","13 +/-"]
[]
[]
[]
["EQUIPMENT:  TYPE, CONDITION AND CARE OF EQUIPMENT","13 +/-"]
[]
[]
[]
["CLASSIFICATION:  PECULIARITIES OF CLASSIFICATION","13 +/-"]
[]
[]
[]
["EMPLOYEES:  SELECTION, TRAINING, SUPERVISION,","10 +/-"]
["EXPERIENCE"]
[]
[]
["COOPERATION:  MEDICAL FACILITIES","5 +/-"]
[]
[]
[]
["COOPERATION:  SAFETY PROGRAM","5 +/-"]
[]
[]
[]
["TOTAL%  CR OR DB:",null,{"$f":"SUM(C17:C48)","v":0},{"$f":"SUM(D17:D48)","v":0}]
[]
["UNDERWRITER SIGNATURE"]
[]
["NOTES"]
[]
["SEE CLM EXPERIENCE AND SCHEDULE RATING PLAN RULE FOR COMPLETE DESCRIPTION OF CHARACTERISTICS"]
["DO NOT USE NEGATIVE NUMBERS WHEN APPLYING A CREDIT"]

{"sheet":"WY","index":54,"n_rows":54,"n_cols":5,"rows_kept":54,"cut":false,"hidden":false,"merged":[[12,1,12,3],[1,0,1,4],[2,0,2,4],[3,0,3,4],[4,0,4,4],[5,0,5,4],[6,1,6,3],[7,1,7,3],[8,1,8,3],[9,1,9,3],[10,1,10,3],[11,1,11,3],[46,0,46,1],[13,1,13,3],[15,2,15,3],[16,4,19,4],[20,4,23,4],[24,4,27,4],[28,4,31,4],[30,5,30,6],[32,4,35,4],[36,4,39,4],[40,4,43,4],[44,4,45,4],[47,0,47,4],[48,1,48,3],[49,1,49,3],[50,1,50,3],[51,1,51,3]]}
["WYOMING"]
["AIG PROPRIETARY SCHEDULE RATING PLAN"]
["As of July 2023"]
["SCHEDULE RATING MODIFICATIONS - GENERAL LIABILITY"]
["RATING INFORMATION FORM"]
["A schedule rating modification may also be applied to the otherwise chargeable premium in accordance with the following table, subject to a maximum credit of -50% or debit of +50%, to reflect such characteristics of the risk as are not reflected in its experience."]
[]
["NAMED INSURED",null,null,null,"AIG COMPANY & POLICY NUMBER"]
[]
["INSURED LOCATION(s) BY STATE:"]
[]
[]
["RISK ","MODIFICATIONS",null,null,"REASONS"]
["CHARACTERISTICS"]
[null,"RANGE","CR"," DB"]
[null,"%","% APPLIED"]
["LOCATION: EXPOSURE INSIDE PREMISES","8 +/-"]
[]
[]
[]
["LOCATION:  EXPOSURE OUTSIDE PREMISES","8 +/-"]
[]
[]
[]
["PREMISES:  CONDITION AND CARE OF PREMISES","13 +/-"]
[]
[]
[]
["EQUIPMENT:  TYPE, CONDITION AND CARE OF EQUIPMENT","13 +/-"]
[]
[]
[]
["CLASSIFICATION:  PECULIARITIES OF CLASSIFICATION","13 +/-"]
[]
[]
[]
["EMPLOYEES:  SELECTION, TRAINING, SUPERVISION,","10 +/-"]
["EXPERIENCE"]
[]
[]
["COOPERATION:  MEDICAL FACILITIES","5 +/-"]
[]
[]
[]
["COOPERATION:  SAFETY PROGRAM","5 +/-"]
[]
["TOTAL%  CR OR DB:",null,{"$f":"SUM(C17:C46)","v":0},{"$f":"SUM(D17:D46)","v":0}]
[]
["UNDERWRITER SIGNATURE","DATE"]
[]
["NOTES"]
[]
["SEE CLM EXPERIENCE AND SCHEDULE RATING PLAN RULE FOR COMPLETE DESCRIPTION OF CHARACTERISTICS"]
["DO NOT USE NEGATIVE NUMBERS WHEN APPLYING A CREDIT"]